Workbook

Sheet List of tables
A1: All table for Scotland only
A3: Sheet | B3: Dataset | C3: Filter | D3: Row data field | E3: Column data field | F3: Nested column data field
A4: AA-Entitlement time series | B4: AA cases with entitlement | C4: Geography - Scotland | D4: Quarter | E4: NA | F4: NA
A5: AA-In payment time series | B5: AA cases in payment | C5: Geography - Scotland | D5: Quarter | E5: NA | F5: NA
A6: AA-Gender | B6: AA cases in payment | C6: Geography - Scotland | D6: Gender | E6: NA | F6: NA
A7: AA-Time in Receipt | B7: AA cases in payment | C7: Geography - Scotland | D7: Duration of current claim | E7: NA | F7: NA
A8: AA–Age Distribution | B8: AA cases in payment | C8: Geography - Scotland | D8: Age (bands) | E8: NA | F8: NA
A9: AA-Qualifying Conditions | B9: AA cases in payment | C9: Geography - Scotland | D9: Main disabling condition | E9: NA | F9: NA
A10: AA-Mobility and Care Element | B10: AA cases in payment | C10: Geography - Scotland | D10: AA award type | E10: NA | F10: NA
A11: DLA-Entitlement time series | B11: DLA cases with entitlement | C11: Geography - Scotland | D11: Quarter | E11: NA | F11: NA
A12: DLA-In payment time series | B12: DLA cases in payment | C12: Geography - Scotland | D12: Quarter | E12: NA | F12: NA
A13: DLA-Gender | B13: DLA cases in payment | C13: Geography - Scotland | D13: Gender | E13: NA | F13: NA
A14: DLA-Time in Receipt | B14: DLA cases in payment | C14: Geography - Scotland | D14: Duration of current claim | E14: NA | F14: NA
A15: DLA–Age Distribution | B15: DLA cases in payment | C15: Geography - Scotland | D15: Age (bands) | E15: NA | F15: NA
A16: DLA-Qualifying Conditions | B16: DLA cases in payment | C16: Geography - Scotland | D16: Main disabling condition | E16: NA | F16: NA
A17: DLA-Mobility and Care Element | B17: DLA cases in payment | C17: Geography - Scotland | D17: Care award type | E17: Mobility award type | F17: NA
A18: Carers-Entitlement by Age time series | B18: CA cases with entitlement | C18: Geography - Scotland | D18: Age (bands) | E18: Payment type | F18: Quarter
A19: Carers-Gender | B19: CA cases in payment | C19: Geography - Scotland | D19: Gender | E19: NA | F19: NA
A20: Carers-Age by duration | B20: CA cases in payment | C20: Geography - Scotland | D20: Duration of current claim | E20: Age (bands) | F20: NA
A21: SDA-Claimant Count | B21: IB and SDA | C21: Geography - Scotland Benefit combination - SDA | D21: Quarter | E21: NA | F21: NA
A22: SDA-Gender | B22: IB and SDA | C22: Geography - Scotland Benefit combination - SDA | D22: Gender | E22: NA | F22: NA
A23: SDA-Qualifying | B23: IB and SDA | C23: Geography - Scotland Benefit combination - SDA | D23: Medical condition | E23: NA | F23: NA

Sheet AA-Entitlement time series
A1: Quarter by National - Regional - LA - OAs
A2: Filters:
A3: National - Regional - LA - OAs | B3: : Scotland
A4: Default Summation | B4: : AA (entitled) - 2011 Geographies
A6: Wafers:
A7: Cell count: 8 (8 x 1 x 1) total.
A9: Quarter | B9: May-18 | C9: Aug-18 | D9: Nov-18 | E9: Feb-19 | F9: May-19 | G9: Aug-19 | H9: Nov-19 | I9: Feb-20 | J9: May-20 | K9: Aug-20
B10: 145091 | C10: 146201 | D10: 146648 | E10: 146054 | F10: 146578 | G10: 147775 | H10: 148113 | I10: 147725 | J10: 143092 | K10: 142308
A12: INFO: Statistical disclosure control has been applied to this table to avoid the release of confidential data. Totals may not sum due to the disclosure control applied.
A13: Annotation Descriptions
A14: Symbol | B14: Description
A15: I | B15: The move to publishing benefit data via the Stat-Xplore instead of the DWP Tabulation Tool has involved adopting a new disclosure control methodology, in line with other benefits published via this new tool. Although the data still comes from the same source there may be small differences in the outputs displayed using this new tool, when compared to the Tabulation Tool.
A16: II | B16: ".." denotes a nil or negligible number of claimants or award amount based on a nil or negligible number of claimants.

Sheet AA-In payment time series
A1: AA Cases In Payment (I II) | J1: Contents
A2: Quarter by National - Regional - LA - OAs
A3: Counting: AA (in payment)
A5: Filters:
A6: Default Summation | B6: AA (in payment)
A7: National - Regional - LA - OAs | B7: Scotland
A9: Quarter | B9: May-18 | C9: Aug-18 | D9: Nov-18 | E9: Feb-19 | F9: May-19 | G9: Aug-19 | H9: Nov-19 | I9: Feb-20 | J9: May-20 | K9: Aug-20
B10: 125501 | C10: 126200 | D10: 127234 | E10: 127193 | F10: 127101 | G10: 126987 | H10: 127307 | I10: 127751 | J10: 127303 | K10: 126291
A13: INFO | B13: Statistical disclosure control has been applied to this table to avoid the release of confidential data. Totals may not sum due to the disclosure control applied.
A14: Symbol | B14: Description
A16: I | B16: The move to publishing benefit data via the Stat-Xplore instead of the DWP Tabulation Tool has involved adopting a new disclosure control methodology, in line with other benefits published via this new tool. Although the data still comes from the same source there may be small differences in the outputs displayed using this new tool, when compared to the Tabulation Tool.
A17: II | B17: ".." denotes a nil or negligible number of claimants or award amount based on a nil or negligible number of claimants.
A18: Source: Department for Work and Pensions

Sheet AA-Gender
A1: AA Cases In Payment (I II) | D1: Contents
A2: Gender by Quarter by National - Regional - LA - OAs
A3: Counting: AA (in payment)
A5: Filters:
A6: Default Summation | B6: AA (in payment)
A7: National - Regional - LA - OAs | B7: Scotland
A9: Quarter | C9: Aug-20
B10: Gender
B11: Male | C11: 47196
B12: Female | C12: 79096
B13: Unknown | C13: ..
B14: Total | C14: 126291
A17: INFO | B17: Statistical disclosure control has been applied to this table to avoid the release of confidential data. Totals may not sum due to the disclosure control applied.
A18: Symbol | B18: Description
A20: I | B20: The move to publishing benefit data via the Stat-Xplore instead of the DWP Tabulation Tool has involved adopting a new disclosure control methodology, in line with other benefits published via this new tool. Although the data still comes from the same source there may be small differences in the outputs displayed using this new tool, when compared to the Tabulation Tool.
A21: II | B21: ".." denotes a nil or negligible number of claimants or award amount based on a nil or negligible number of claimants.

Sheet AA-Time in Receipt
A1: AA Cases In Payment | D1: Contents
A2: Duration of Current Claim by Quarter by National - Regional - LA - OAs
A3: Counting: AA (in payment)
A5: Filters:
A6: Default Summation | B6: AA (in payment)
A7: National - Regional - LA - OAs | B7: Scotland
A9: Quarter | C9: Aug-20
B10: Duration of Current Claim
B11: Up to 3 months | C11: 3302
B12: 3 months up to 6 months | C12: 3043
B13: 6 months up to 1 year | C13: 10991
B14: 1 year and up to 2 years | C14: 18799
B15: 2 years and up to 5 years | C15: 38317
B16: 5 years and over | C16: 51831
B17: Unknown | C17: ..
B18: Total | C18: 126291
A20: Symbol | B20: Description
A22: I | B22: The move to publishing benefit data via the Stat-Xplore instead of the DWP Tabulation Tool has involved adopting a new disclosure control methodology, in line with other benefits published via this new tool. Although the data still comes from the same source there may be small differences in the outputs displayed using this new tool, when compared to the Tabulation Tool.
A23: II | B23: ".." denotes a nil or negligible number of claimants or award amount based on a nil or negligible number of claimants.

Sheet AA–Age Distribution
A1: AA Cases In Payment | D1: Contents
A2: Age (bands and single year) by Quarter by National - Regional - LA - OAs
A3: Counting: AA (in payment)
A5: Filters:
A6: Default Summation | B6: AA (in payment)
A7: National - Regional - LA - OAs | B7: Scotland
A9: Quarter | C9: Aug-20
B10: Age (bands and single year)
B11: 65-69 | C11: 6045
B12: 70-74 | C12: 19359
B13: 75-79 | C13: 24836
B14: 80-84 | C14: 31063
B15: 85-89 | C15: 26807
B16: 90 and over | C16: 18182
B17: Unknown | C17: ..
B18: Total | C18: 126291
A20: Symbol | B20: Description
A22: I | B22: The move to publishing benefit data via the Stat-Xplore instead of the DWP Tabulation Tool has involved adopting a new disclosure control methodology, in line with other benefits published via this new tool. Although the data still comes from the same source there may be small differences in the outputs displayed using this new tool, when compared to the Tabulation Tool.
A23: II | B23: ".." denotes a nil or negligible number of claimants or award amount based on a nil or negligible number of claimants.

Sheet AA-Qualifying Conditions
A1: AA Cases In Payment | D1: Contents
A2: Main Disabling Condition by Quarter by National - Regional - LA - OAs
A3: Counting: AA (in payment)
A5: Filters:
A6: Default Summation | B6: AA (in payment)
A7: National - Regional - LA - OAs | B7: Scotland
A9: Quarter | C9: Aug-20
B10: Main Disabling Condition (III)
B11: Arthritis | C11: 36998 | E11: Hyperkinetic Syndrome | F11: ..
B12: Spondylosis | C12: 1366 | E12: Severely Mentally impaired | F12: ..
B13: Back Pain - Other / Precise Diagnosis not Specified | C13: 4611 | E13: Double Amputee | F13: ..
B14: Disease Of The Muscles, Bones or Joints | C14: 6852 | E14: Deaf/Blind | F14: ..
B15: Trauma to Limbs | C15: 1559 | E15: Total Parenteral Nutrition | F15: ..
B16: Blindness | C16: 4085 | E16: Infectious diseases: Bacterial disease - precise diagnosis not specified | F16: ..
B17: Deafness | C17: 631 | E17: Infectious diseases: Protozoal disease - Malaria | F17: ..
B18: Heart Disease | C18: 9016 | E18: Infectious diseases: Protozoal disease - other / precise diagnosis not specified | F18: ..
B19: Chest Disease | C19: 8920 | E19: Arthritis | F19: 36998
B20: Asthma | C20: 569 | E20: Unknown | F20: 11299
B21: Cystic Fibrosis | C21: 5 | E21: Dementia | F21: 9892
B22: Cerebrovascular Disease | C22: 6822 | E22: Heart Disease | F22: 9016
B23: Peripheral vascular Disease | C23: 977 | E23: Chest Disease | F23: 8920
B24: Epilepsy | C24: 257 | E24: Disease Of The Muscles, Bones or Joints | F24: 6852
B25: Neurological Diseases | C25: 2408 | E25: Cerebrovascular Disease | F25: 6822
B26: Multiple Sclerosis | C26: 230 | E26: Malignant Disease | F26: 4881
B27: Parkinsons Disease | C27: 2711 | E27: Back Pain - Other / Precise Diagnosis not Specified | F27: 4611
B28: Motor Neurone Disease | C28: 55 | E28: Blindness | F28: 4085 | G28: =SUM(F29:F65) -> 22904
B29: Chronic Pain Syndromes | C29: 341 | E29: Terminally Ill | F29: 2957
B30: Diabetes Mellitus | C30: 1271 | E30: Parkinsons Disease | F30: 2711
B31: Metabolic Disease | C31: 126 | E31: Neurological Diseases | F31: 2408
B32: Traumatic Paraplegia/Tetraplegia | C32: 36 | E32: Trauma to Limbs | F32: 1559
B33: Major Trauma Other than Traumatic Paraplegia/Tetraplegia | C33: 162 | E33: Spondylosis | F33: 1366
B34: Learning Difficulties | C34: 116 | E34: Cognitive disorder - other / precise diagnosis not specified | F34: 1323
B35: Psychosis | C35: 1181 | E35: Diabetes Mellitus | F35: 1271
B36: Psychoneurosis | C36: 834 | E36: Psychosis | F36: 1181
B37: Personality Disorder | C37: 13 | E37: Renal Disorders | F37: 1029
B38: Dementia | C38: 9892 | E38: Peripheral vascular Disease | F38: 977
B39: Behavioral Disorder | C39: 33 | E39: Psychoneurosis | F39: 834
B40: Alcohol and Drug Abuse | C40: 353 | E40: Deafness | F40: 631
B41: Hyperkinetic Syndrome | C41: .. | E41: Multi System Disorders | F41: 588
B42: Renal Disorders | C42: 1029 | E42: Frailty | F42: 577
B43: Inflammatory Bowel Disease | C43: 179 | E43: Asthma | F43: 569
B44: Bowel and Stomach Disease | C44: 559 | E44: Bowel and Stomach Disease | F44: 559
B45: Blood Disorders | C45: 154 | E45: Alcohol and Drug Abuse | F45: 353
B46: Haemophilia | C46: 12 | E46: Chronic Pain Syndromes | F46: 341
B47: AIDS | C47: 6 | E47: Epilepsy | F47: 257
B48: Multi System Disorders | C48: 588 | E48: Skin Disease | F48: 242
B49: Multiple Allergy Syndrome | C49: 5 | E49: Multiple Sclerosis | F49: 230
B50: Skin Disease | C50: 242 | E50: Inflammatory Bowel Disease | F50: 179
B51: Malignant Disease | C51: 4881 | E51: Major Trauma Other than Traumatic Paraplegia/Tetraplegia | F51: 162
B52: Severely Mentally impaired | C52: .. | E52: Blood Disorders | F52: 154
B53: Double Amputee | C53: .. | E53: Metabolic Disease | F53: 126
B54: Deaf/Blind | C54: .. | E54: Learning Difficulties | F54: 116
B55: Haemodialysis | C55: 8 | E55: Motor Neurone Disease | F55: 55
B56: Frailty | C56: 577 | E56: Traumatic Paraplegia/Tetraplegia | F56: 36
B57: Total Parenteral Nutrition | C57: .. | E57: Behavioral Disorder | F57: 33
B58: Infectious diseases: Bacterial disease - Tuberculosis | C58: 14 | E58: Infectious diseases - other / precise diagnosis not specified | F58: 17
B59: Infectious diseases: Bacterial disease - precise diagnosis not specified | C59: .. | E59: Infectious diseases: Bacterial disease - Tuberculosis | F59: 14
B60: Infectious diseases: Protozoal disease - Malaria | C60: .. | E60: Personality Disorder | F60: 13
B61: Infectious diseases: Protozoal disease - other / precise diagnosis not specified | C61: .. | E61: Haemophilia | F61: 12
B62: Infectious diseases - other / precise diagnosis not specified | C62: 17 | E62: Haemodialysis | F62: 8
B63: Cognitive disorder - other / precise diagnosis not specified | C63: 1323 | E63: AIDS | F63: 6
B64: Terminally Ill | C64: 2957 | E64: Cystic Fibrosis | F64: 5
B65: Unknown | C65: 11299 | E65: Multiple Allergy Syndrome | F65: 5
B66: Total | C66: 126291
A68: Symbol | B68: Description
A70: I | B70: The move to publishing benefit data via the Stat-Xplore instead of the DWP Tabulation Tool has involved adopting a new disclosure control methodology, in line with other benefits published via this new tool. Although the data still comes from the same source there may be small differences in the outputs displayed using this new tool, when compared to the Tabulation Tool.
A71: II | B71: ".." denotes a nil or negligible number of claimants or award amount based on a nil or negligible number of claimants.

Sheet AA-Mobility and Care Element
A1: AA Cases In Payment | D1: Contents
A2: AA Award Type by Quarter by National - Regional - LA - OAs
A3: Counting: AA (in payment)
A5: Filters:
A6: Default Summation | B6: AA (in payment)
A7: National - Regional - LA - OAs | B7: Scotland
A9: Quarter | C9: Aug-20
B10: AA Award Type
B11: Lower Rate | C11: 44215
B12: Higher Rate | C12: 82079
B13: Nil Rate | C13: ..
B14: Total | C14: 126291
A16: Symbol | B16: Description
A18: I | B18: The move to publishing benefit data via the Stat-Xplore instead of the DWP Tabulation Tool has involved adopting a new disclosure control methodology, in line with other benefits published via this new tool. Although the data still comes from the same source there may be small differences in the outputs displayed using this new tool, when compared to the Tabulation Tool.
A19: II | B19: ".." denotes a nil or negligible number of claimants or award amount based on a nil or negligible number of claimants.

Sheet DLA-Entitlement time series
A1: Quarter by National - Regional - LA - OAs
A2: Filters:
A3: National - Regional - LA - OAs
A4: : Scotland
A5: Default Summation
A6: : DLA (entitled) - 2011 Geographies
A7: Wafers:
A8: Cell count: 8 (8 x 1 x 1) total.
A10: Quarter | C10: Aug-18 | D10: Nov-18 | E10: Feb-19 | F10: May-19 | G10: Aug-19 | H10: Nov-19 | I10: Feb-20 | J10: May-20 | K10: Aug-20
C11: 196967 | D11: 188444 | E11: 184025 | F11: 179111 | G11: 174107 | H11: 166521 | I11: 157830 | J11: 149541 | K11: 148364
A12: For further information see Data Confidentiality
A13: INFO: Statistical disclosure control has been applied to this table to avoid the release of confidential data. Totals may not sum due to the disclosure control applied.
A14: Annotation Descriptions
A15: Symbol | B15: Description
A16: I | B16: The move to publishing benefit data via the Stat-Xplore instead of the DWP Tabulation Tool has involved adopting a new disclosure control methodology, in line with other benefits published via this new tool. Although the data still comes from the same source there may be small differences in the outputs displayed using this new tool, when compared to the Tabulation Tool.
A17: III | B17: ".." denotes a nil or negligible number of claimants or award amount based on a nil or negligible number of claimants.

Sheet DLA-Gender
A1: DLA Cases In Payment (I III) | D1: Contents
A2: Gender by Quarter by National - Regional - LA - OAs
A3: Counting: DLA (in payment)
A5: Filters:
A6: Default Summation | B6: DLA (in payment)
A7: National - Regional - LA - OAs (II) | B7: Scotland
A9: Quarter | C9: Aug-20
B10: Gender
B11: Male | C11: 77073
B12: Female | C12: 69826
B13: Unknown | C13: ..
B14: Total | C14: 146895
A17: INFO | B17: Statistical disclosure control has been applied to this table to avoid the release of confidential data. Totals may not sum due to the disclosure control applied.
A18: Symbol | B18: Description
A20: I | B20: The move to publishing benefit data via the Stat-Xplore instead of the DWP Tabulation Tool has involved adopting a new disclosure control methodology, in line with other benefits published via this new tool. Although the data still comes from the same source there may be small differences in the outputs displayed using this new tool, when compared to the Tabulation Tool.
A21: III | B21: ".." denotes a nil or negligible number of claimants or award amount based on a nil or negligible number of claimants.
A22: II | B22: Between May 2007 to November 2007 location information for some claimants is unavailable, causing a slight rise in the number of unknown geographies. Statistics for this period which show geography information should therefore be interpreted with care.

Sheet DLA-In payment time series
A1: DLA Cases In Payment (I III) | E1: Contents
A2: Quarter by National - Regional - LA - OAs
A3: Counting: DLA (in payment)
A5: Filters:
A6: Default Summation | B6: DLA (in payment)
A7: National - Regional - LA - OAs (II) | B7: Scotland
A9: Quarter | B9: Aug-18 | C9: Nov-18 | D9: Feb-19 | E9: May-19 | F9: Aug-19 | G9: Nov-19 | H9: Feb-20 | I9: May-20 | J9: Aug-20
A10: dla | B10: 194992 | C10: 186577 | D10: 182154 | E10: 177291 | F10: 172294 | G10: 164774 | H10: 156174 | I10: 148030 | J10: 146895
A13: INFO | B13: Statistical disclosure control has been applied to this table to avoid the release of confidential data. Totals may not sum due to the disclosure control applied.
A14: Symbol | B14: Description
A16: I | B16: The move to publishing benefit data via the Stat-Xplore instead of the DWP Tabulation Tool has involved adopting a new disclosure control methodology, in line with other benefits published via this new tool. Although the data still comes from the same source there may be small differences in the outputs displayed using this new tool, when compared to the Tabulation Tool.
A17: III | B17: ".." denotes a nil or negligible number of claimants or award amount based on a nil or negligible number of claimants.
A18: II | B18: Between May 2007 to November 2007 location information for some claimants is unavailable, causing a slight rise in the number of unknown geographies. Statistics for this period which show geography information should therefore be interpreted with care.
A19: Source: Department for Work and Pensions

Sheet DLA-Time in Receipt
A1: DLA Cases In Payment | E1: Contents
A2: Duration of Current Claim by Quarter by National - Regional - LA - OAs
A3: Counting: DLA (in payment)
A5: Filters:
A6: Default Summation | B6: DLA (in payment)
A7: National - Regional - LA - OAs | B7: Scotland
A9: Quarter | C9: Aug-20
B10: Duration of Current Claim
B11: Up to 3 months | C11: 1037
B12: 3 months up to 6 months | C12: 995
B13: 6 months up to 1 year | C13: 3349
B14: 1 year and up to 2 years | C14: 6358
B15: 2 years and up to 5 years | C15: 14541
B16: 5 years and over | C16: 120623
B17: Unknown | C17: ..
B18: Total | C18: 146895
A20: Symbol | B20: Description
A22: I | B22: The move to publishing benefit data via the Stat-Xplore instead of the DWP Tabulation Tool has involved adopting a new disclosure control methodology, in line with other benefits published via this new tool. Although the data still comes from the same source there may be small differences in the outputs displayed using this new tool, when compared to the Tabulation Tool.
A23: III | B23: ".." denotes a nil or negligible number of claimants or award amount based on a nil or negligible number of claimants.
A24: II | B24: Between May 2007 to November 2007 location information for some claimants is unavailable, causing a slight rise in the number of unknown geographies. Statistics for this period which show geography information should therefore be interpreted with care.

Sheet DLA–Age Distribution
A1: DLA Cases In Payment (I III) | E1: Contents
A2: Age (bands and single year) by Quarter by National - Regional - LA - OAs
A3: Counting: DLA (in payment)
A5: Filters:
A6: Default Summation | B6: DLA (in payment)
A7: National - Regional - LA - OAs (II) | B7: Scotland
A9: Quarter | C9: Aug-20
B10: Age (bands and single year)
B11: Under 5 | C11: 3961
B12: 5 to 10 | C12: 18592
B13: 11 to 15 | C13: 19258
B14: 16 to 17 | C14: 2705
B15: 18 to 24 | C15: 1227
B16: 25 to 29 | C16: 2540
B17: 30 to 34 | C17: 2540
B18: 35 to 39 | C18: 2366
B19: 40 to 44 | C19: 2611
B20: 45 to 49 | C20: 3627
B21: 50 to 54 | C21: 5436
B22: 55 to 59 | C22: 7054
B23: 60 to 64 | C23: 8158
B24: 65 to 69 | C24: 9002
B25: 70 to 74 | C25: 18757
B26: 75 to 79 | C26: 20768
B27: 80 to 84 | C27: 12410
B28: 85 to 89 | C28: 4882
B29: 90 and over | C29: 1007
B30: Unknown/Missing | C30: ..
B31: Total | C31: 146895
A34: INFO | B34: Statistical disclosure control has been applied to this table to avoid the release of confidential data. Totals may not sum due to the disclosure control applied.
A35: Symbol | B35: Description
A37: I | B37: The move to publishing benefit data via the Stat-Xplore instead of the DWP Tabulation Tool has involved adopting a new disclosure control methodology, in line with other benefits published via this new tool. Although the data still comes from the same source there may be small differences in the outputs displayed using this new tool, when compared to the Tabulation Tool.
A38: III | B38: ".." denotes a nil or negligible number of claimants or award amount based on a nil or negligible number of claimants.
A39: II | B39: Between May 2007 to November 2007 location information for some claimants is unavailable, causing a slight rise in the number of unknown geographies. Statistics for this period which show geography information should therefore be interpreted with care.

Sheet DLA-Qualifying Conditions
A1: DLA Cases In Payment (I III) | E1: Contents
A2: Main Disabling Condition by Quarter by National - Regional - LA - OAs
A3: Counting: DLA (in payment)
A5: Filters:
A6: Default Summation | B6: DLA (in payment)
A7: National - Regional - LA - OAs (II) | B7: Scotland
A9: Quarter | C9: Aug-20 | F9: Infectious diseases: Bacterial disease - precise diagnosis not specified | G9: ..
B10: Main Disabling Condition | F10: Infectious diseases: Protozoal disease - Malaria | G10: ..
B11: Arthritis | C11: 25966 | F11: Infectious diseases: Protozoal disease - other / precise diagnosis not specified | G11: ..
B12: Spondylosis | C12: 2755 | F12: Learning Difficulties | G12: 30518
B13: Back Pain - Other / Precise Diagnosis not Specified | C13: 4880 | F13: Arthritis | G13: 25966
B14: Disease Of The Muscles, Bones or Joints | C14: 6640 | F14: Disease Of The Muscles, Bones or Joints | G14: 6640
B15: Trauma to Limbs | C15: 1651 | F15: Behavioral Disorder | G15: 6128
B16: Blindness | C16: 2765 | F16: Psychosis | G16: 6010
B17: Deafness | C17: 1890 | F17: Neurological Diseases | G17: 5770
B18: Heart Disease | C18: 5717 | F18: Heart Disease | G18: 5717
B19: Chest Disease | C19: 3906 | F19: Unknown/Transfer from AA | G19: 5635
B20: Asthma | C20: 1157 | F20: Psychoneurosis | G20: 5542
B21: Cystic Fibrosis | C21: 451 | F21: Back Pain - Other / Precise Diagnosis not Specified | G21: 4880 | I21: =SUM(G22:G63) -> 44082
B22: Cerebrovascular Disease | C22: 4464 | F22: Hyperkinetic Syndrome | G22: 4767
B23: Peripheral vascular Disease | C23: 998 | F23: Cerebrovascular Disease | G23: 4464
B24: Epilepsy | C24: 2330 | F24: Chest Disease | G24: 3906
B25: Neurological Diseases | C25: 5770 | F25: Diabetes Mellitus | G25: 3056
B26: Multiple Sclerosis | C26: 2461 | F26: Blindness | G26: 2765
B27: Parkinsons Disease | C27: 543 | F27: Spondylosis | G27: 2755
B28: Motor Neurone Disease | C28: 56 | F28: Multiple Sclerosis | G28: 2461
B29: Chronic Pain Syndromes | C29: 1256 | F29: Epilepsy | G29: 2330
B30: Diabetes Mellitus | C30: 3056 | F30: Malignant Disease | G30: 2051
B31: Metabolic Disease | C31: 386 | F31: Deafness | G31: 1890
B32: Traumatic Paraplegia/Tetraplegia | C32: 265 | F32: Trauma to Limbs | G32: 1651
B33: Major Trauma Other than Traumatic Paraplegia/Tetraplegia | C33: 879 | F33: Chronic Pain Syndromes | G33: 1256
B34: Learning Difficulties | C34: 30518 | F34: Asthma | G34: 1157
B35: Psychosis | C35: 6010 | F35: Peripheral vascular Disease | G35: 998
B36: Psychoneurosis | C36: 5542 | F36: Major Trauma Other than Traumatic Paraplegia/Tetraplegia | G36: 879
B37: Personality Disorder | C37: 254 | F37: Alcohol and Drug Abuse | G37: 825
B38: Dementia | C38: 809 | F38: Dementia | G38: 809
B39: Behavioral Disorder | C39: 6128 | F39: Bowel and Stomach Disease | G39: 665
B40: Alcohol and Drug Abuse | C40: 825 | F40: Severely Mentally impaired | G40: 598
B41: Hyperkinetic Syndrome | C41: 4767 | F41: Skin Disease | G41: 559
B42: Renal Disorders | C42: 493 | F42: Parkinsons Disease | G42: 543
B43: Inflammatory Bowel Disease | C43: 387 | F43: Renal Disorders | G43: 493
B44: Bowel and Stomach Disease | C44: 665 | F44: Cystic Fibrosis | G44: 451
B45: Blood Disorders | C45: 154 | F45: Terminally Ill | G45: 413
B46: Haemophilia | C46: 85 | F46: Inflammatory Bowel Disease | G46: 387
B47: AIDS | C47: 145 | F47: Metabolic Disease | G47: 386
B48: Multi System Disorders | C48: 368 | F48: Multi System Disorders | G48: 368
B49: Multiple Allergy Syndrome | C49: 21 | F49: Traumatic Paraplegia/Tetraplegia | G49: 265
B50: Skin Disease | C50: 559 | F50: Personality Disorder | G50: 254
B51: Malignant Disease | C51: 2051 | F51: Blood Disorders | G51: 154
B52: Severely Mentally impaired | C52: 598 | F52: AIDS | G52: 145
B53: Double Amputee | C53: 30 | F53: Haemophilia | G53: 85
B54: Deaf/Blind | C54: 32 | F54: Cognitive disorder - other / precise diagnosis not specified | G54: 77
B55: Haemodialysis | C55: 9 | F55: Motor Neurone Disease | G55: 56
B56: Frailty | C56: 43 | F56: Frailty | G56: 43
B57: Total Parenteral Nutrition | C57: 6 | F57: Deaf/Blind | G57: 32
B58: Infectious diseases: Bacterial disease - Tuberculosis | C58: 7 | F58: Double Amputee | G58: 30
B59: Infectious diseases: Bacterial disease - precise diagnosis not specified | C59: .. | F59: Multiple Allergy Syndrome | G59: 21
B60: Infectious diseases: Protozoal disease - Malaria | C60: .. | F60: Infectious diseases - other / precise diagnosis not specified | G60: 15
B61: Infectious diseases: Protozoal disease - other / precise diagnosis not specified | C61: .. | F61: Haemodialysis | G61: 9
B62: Infectious diseases - other / precise diagnosis not specified | C62: 15 | F62: Infectious diseases: Bacterial disease - Tuberculosis | G62: 7
B63: Cognitive disorder - other / precise diagnosis not specified | C63: 77 | F63: Total Parenteral Nutrition | G63: 6
B64: Terminally Ill | C64: 413
B65: Unknown/Transfer from AA | C65: 5635
B66: Total | C66: 146895
A69: INFO | B69: Statistical disclosure control has been applied to this table to avoid the release of confidential data. Totals may not sum due to the disclosure control applied.
A70: Symbol | B70: Description
A72: I | B72: The move to publishing benefit data via the Stat-Xplore instead of the DWP Tabulation Tool has involved adopting a new disclosure control methodology, in line with other benefits published via this new tool. Although the data still comes from the same source there may be small differences in the outputs displayed using this new tool, when compared to the Tabulation Tool.
A73: III | B73: ".." denotes a nil or negligible number of claimants or award amount based on a nil or negligible number of claimants.
A74: II | B74: Between May 2007 to November 2007 location information for some claimants is unavailable, causing a slight rise in the number of unknown geographies. Statistics for this period which show geography information should therefore be interpreted with care.

Sheet DLA-Mobility and Care Element
A1: DLA Cases In Payment | F1: Contents
A2: Care Award Type by Quarter and Mobility Award Type by National - Regional - LA - OAs
A3: Counting: DLA (in payment)
A5: Filters:
A6: Default Summation | B6: DLA (in payment)
A7: National - Regional - LA - OAs | B7: Scotland
A9: Quarter | C9: Aug-20
A10: Mobility Award Type | C10: Higher Rate | D10: Lower Rate | E10: Nil Rate | F10: Total
B11: Care Award Type
B12: Highest Rate | C12: 24808 | D12: 12767 | E12: 3988 | F12: 41564 | I12: =C12/$F$16 -> 0.1688825351 | J12: =D12/$F$16 -> 0.08691242044 | K12: 0.02714864359
B13: Middle Rate | C13: 19774 | D13: 28739 | E13: 11017 | F13: 59531 | I13: =C13/$F$16 -> 0.1346131591 | J13: 0.1956431465 | K13: 0.07499914905
B14: Lowest Rate | C14: 12989 | D14: 7096 | E14: 7936 | F14: 28018 | I14: 0.08842370401 | J14: 0.04830661357 | K14: =E14/$F$16 -> 0.05402498383
B15: Nil Rate | C15: 14574 | D15: 3206 | E15: .. | F15: 17780 | I15: =C15/$F$16 -> 0.09921372409 | J15: =D15/$F$16 -> 0.02182511318 | K15: -
B16: Total | C16: 72145 | D16: 51809 | E16: 22937 | F16: 146895
A18: Symbol | B18: Description
A20: I | B20: The move to publishing benefit data via the Stat-Xplore instead of the DWP Tabulation Tool has involved adopting a new disclosure control methodology, in line with other benefits published via this new tool. Although the data still comes from the same source there may be small differences in the outputs displayed using this new tool, when compared to the Tabulation Tool.
A21: III | B21: ".." denotes a nil or negligible number of claimants or award amount based on a nil or negligible number of claimants.
A22: II | B22: Between May 2007 to November 2007 location information for some claimants is unavailable, causing a slight rise in the number of unknown geographies. Statistics for this period which show geography information should therefore be interpreted with care.

Sheet CA-Payment type by age
A1: Age (bands and single year) by Payment type and Quarter by National - Regional - LA - OAs
A2: Filters:
A3: National - Regional - LA - OAs
A4: : Scotland
A5: Default Summation
A6: : CA (Entitled) - 2011 Geographies
A7: Wafers:
A8: Cell count: 416 (32 x 13 x 1) total.
A10: Payment type | C10: Entitlement only | M10: Claimant receiving benefit | W10: Entitled, payment status unknown | AG10: Total
A11: Quarter | C11: May-18 | D11: Aug-18 | E11: Nov-18 | F11: Feb-19 | G11: May-19 | H11: Aug-19 | I11: Nov-19 | J11: Feb-20 | K11: May-20 | L11: 2020-08-01 | M11: May-18 | N11: Aug-18 | O11: Nov-18 | P11: Feb-19 | Q11: May-19 | R11: Aug-19 | S11: Nov-19 | T11: Feb-20 | U11: May-20 | V11: 2020-08-01 | W11: May-18 | X11: Aug-18 | Y11: Nov-18 | Z11: Feb-19 | AA11: May-19 | AB11: Aug-19 | AC11: Nov-19 | AD11: Feb-20 | AE11: May-20 | AF11: 2020-08-01 | AG11: May-18 | AH11: Aug-18 | AI11: Nov-18 | AJ11: Feb-19 | AK11: May-19 | AL11: Aug-19 | AM11: Nov-19 | AN11: Feb-20 | AO11: May-20 | AP11: 2020-08-01
B12: Age (bands and single year)
B13: Under 18 | C13: 35 | D13: 37 | E13: 46 | F13: 38 | G13: 27 | H13: 45 | I13: 37 | J13: 36 | K13: 40 | L13: 38 | M13: 263 | N13: 302 | O13: 272 | P13: 295 | Q13: 335 | R13: 357 | S13: 331 | T13: 370 | U13: 459 | V13: 528 | W13: .. | X13: .. | Y13: .. | Z13: .. | AA13: .. | AB13: .. | AC13: .. | AD13: .. | AE13: .. | AF13: .. | AG13: 289 | AH13: 339 | AI13: 316 | AJ13: 334 | AK13: 359 | AL13: 401 | AM13: 364 | AN13: 404 | AO13: 497 | AP13: 561
B14: 18-24 | C14: 511 | D14: 538 | E14: 567 | F14: 539 | G14: 406 | H14: 402 | I14: 433 | J14: 423 | K14: 366 | L14: 233 | M14: 3674 | N14: 3718 | O14: 3577 | P14: 3630 | Q14: 3708 | R14: 3699 | S14: 3477 | T14: 3542 | U14: 3742 | V14: 3928 | W14: .. | X14: .. | Y14: .. | Z14: .. | AA14: .. | AB14: .. | AC14: .. | AD14: .. | AE14: .. | AF14: .. | AG14: 4186 | AH14: 4258 | AI14: 4148 | AJ14: 4162 | AK14: 4116 | AL14: 4101 | AM14: 3906 | AN14: 3960 | AO14: 4111 | AP14: 4168
B15: 25-29 | C15: 588 | D15: 573 | E15: 603 | F15: 584 | G15: 494 | H15: 437 | I15: 427 | J15: 426 | K15: 356 | L15: 247 | M15: 4980 | N15: 5021 | O15: 4941 | P15: 5007 | Q15: 5086 | R15: 5094 | S15: 5004 | T15: 5058 | U15: 5161 | V15: 5225 | W15: .. | X15: .. | Y15: .. | Z15: .. | AA15: .. | AB15: .. | AC15: .. | AD15: .. | AE15: .. | AF15: .. | AG15: 5566 | AH15: 5593 | AI15: 5542 | AJ15: 5589 | AK15: 5581 | AL15: 5532 | AM15: 5428 | AN15: 5478 | AO15: 5518 | AP15: 5476
B16: 30-34 | C16: 696 | D16: 707 | E16: 770 | F16: 739 | G16: 636 | H16: 592 | I16: 628 | J16: 618 | K16: 519 | L16: 381 | M16: 7202 | N16: 7356 | O16: 7276 | P16: 7422 | Q16: 7563 | R16: 7592 | S16: 7534 | T16: 7653 | U16: 7895 | V16: 8030 | W16: .. | X16: .. | Y16: .. | Z16: .. | AA16: .. | AB16: .. | AC16: .. | AD16: .. | AE16: .. | AF16: .. | AG16: 7900 | AH16: 8066 | AI16: 8041 | AJ16: 8161 | AK16: 8199 | AL16: 8185 | AM16: 8160 | AN16: 8274 | AO16: 8415 | AP16: 8410
B17: 35-39 | C17: 846 | D17: 884 | E17: 907 | F17: 848 | G17: 772 | H17: 729 | I17: 706 | J17: 713 | K17: 616 | L17: 492 | M17: 8281 | N17: 8397 | O17: 8347 | P17: 8446 | Q17: 8500 | R17: 8591 | S17: 8604 | T17: 8744 | U17: 9042 | V17: 9268 | W17: .. | X17: .. | Y17: .. | Z17: .. | AA17: .. | AB17: .. | AC17: .. | AD17: .. | AE17: .. | AF17: .. | AG17: 9130 | AH17: 9281 | AI17: 9256 | AJ17: 9295 | AK17: 9271 | AL17: 9316 | AM17: 9311 | AN17: 9454 | AO17: 9657 | AP17: 9755
B18: 40-44 | C18: 847 | D18: 861 | E18: 868 | F18: 868 | G18: 734 | H18: 690 | I18: 731 | J18: 715 | K18: 639 | L18: 494 | M18: 8030 | N18: 8059 | O18: 8017 | P18: 8093 | Q18: 8182 | R18: 8193 | S18: 8141 | T18: 8261 | U18: 8503 | V18: 8733 | W18: .. | X18: .. | Y18: .. | Z18: .. | AA18: .. | AB18: .. | AC18: .. | AD18: .. | AE18: .. | AF18: .. | AG18: 8879 | AH18: 8917 | AI18: 8888 | AJ18: 8963 | AK18: 8910 | AL18: 8887 | AM18: 8876 | AN18: 8974 | AO18: 9136 | AP18: 9227
B19: 45-49 | C19: 1150 | D19: 1094 | E19: 1148 | F19: 1142 | G19: 993 | H19: 912 | I19: 855 | J19: 858 | K19: 761 | L19: 613 | M19: 9753 | N19: 9756 | O19: 9570 | P19: 9531 | Q19: 9525 | R19: 9489 | S19: 9354 | T19: 9316 | U19: 9418 | V19: 9489 | W19: .. | X19: .. | Y19: .. | Z19: .. | AA19: .. | AB19: .. | AC19: .. | AD19: .. | AE19: .. | AF19: .. | AG19: 10906 | AH19: 10853 | AI19: 10719 | AJ19: 10670 | AK19: 10519 | AL19: 10399 | AM19: 10203 | AN19: 10174 | AO19: 10179 | AP19: 10103
B20: 50-54 | C20: 1368 | D20: 1368 | E20: 1365 | F20: 1378 | G20: 1276 | H20: 1214 | I20: 1174 | J20: 1137 | K20: 1044 | L20: 822 | M20: 10535 | N20: 10614 | O20: 10556 | P20: 10622 | Q20: 10633 | R20: 10595 | S20: 10456 | T20: 10466 | U20: 10582 | V20: 10759 | W20: .. | X20: .. | Y20: .. | Z20: .. | AA20: .. | AB20: .. | AC20: .. | AD20: .. | AE20: .. | AF20: .. | AG20: 11906 | AH20: 11981 | AI20: 11920 | AJ20: 11996 | AK20: 11909 | AL20: 11809 | AM20: 11632 | AN20: 11599 | AO20: 11626 | AP20: 11577
B21: 55-59 | C21: 1622 | D21: 1627 | E21: 1634 | F21: 1677 | G21: 1596 | H21: 1490 | I21: 1430 | J21: 1455 | K21: 1392 | L21: 1066 | M21: 10671 | N21: 10858 | O21: 10856 | P21: 10871 | Q21: 10979 | R21: 10968 | S21: 11051 | T21: 11124 | U21: 11303 | V21: 11523 | W21: .. | X21: .. | Y21: .. | Z21: .. | AA21: .. | AB21: .. | AC21: .. | AD21: .. | AE21: .. | AF21: .. | AG21: 12291 | AH21: 12482 | AI21: 12490 | AJ21: 12547 | AK21: 12571 | AL21: 12457 | AM21: 12485 | AN21: 12577 | AO21: 12696 | AP21: 12589
B22: 60-64 | C22: 2064 | D22: 1943 | E22: 1789 | F22: 1883 | G22: 1762 | H22: 1681 | I22: 1595 | J22: 1748 | K22: 1596 | L22: 1255 | M22: 10570 | N22: 10904 | O22: 11267 | P22: 11477 | Q22: 11664 | R22: 11764 | S22: 11834 | T22: 11914 | U22: 12126 | V22: 12363 | W22: .. | X22: .. | Y22: .. | Z22: .. | AA22: .. | AB22: .. | AC22: .. | AD22: .. | AE22: .. | AF22: .. | AG22: 12632 | AH22: 12844 | AI22: 13053 | AJ22: 13356 | AK22: 13427 | AL22: 13443 | AM22: 13423 | AN22: 13663 | AO22: 13719 | AP22: 13616
B23: 65 and over | C23: 36073 | D23: 36223 | E23: 36433 | F23: 36334 | G23: 36277 | H23: 36052 | I23: 35875 | J23: 35683 | K23: 34565 | L23: 33020 | M23: 797 | N23: 822 | O23: 762 | P23: 1218 | Q23: 1545 | R23: 1910 | S23: 2052 | T23: 2425 | U23: 2732 | V23: 3164 | W23: .. | X23: .. | Y23: .. | Z23: .. | AA23: .. | AB23: .. | AC23: .. | AD23: .. | AE23: .. | AF23: .. | AG23: 36875 | AH23: 37045 | AI23: 37194 | AJ23: 37554 | AK23: 37824 | AL23: 37964 | AM23: 37928 | AN23: 38106 | AO23: 37296 | AP23: 36180
B24: Unknown | C24: .. | D24: .. | E24: .. | F24: .. | G24: .. | H24: .. | I24: .. | J24: .. | K24: .. | L24: .. | M24: .. | N24: .. | O24: .. | P24: .. | Q24: .. | R24: .. | S24: .. | T24: .. | U24: .. | V24: .. | W24: .. | X24: .. | Y24: .. | Z24: .. | AA24: .. | AB24: .. | AC24: .. | AD24: .. | AE24: .. | AF24: .. | AG24: .. | AH24: .. | AI24: .. | AJ24: .. | AK24: .. | AL24: .. | AM24: .. | AN24: .. | AO24: .. | AP24: ..
B25: Total | C25: 45805 | D25: 45857 | E25: 46129 | F25: 46025 | G25: 44978 | H25: 44243 | I25: 43891 | J25: 43803 | K25: 41896 | L25: 38669 | M25: 74757 | N25: 75805 | O25: 75437 | P25: 76597 | Q25: 77711 | R25: 78252 | S25: 77842 | T25: 78870 | U25: 80963 | V25: 83009 | W25: .. | X25: .. | Y25: .. | Z25: .. | AA25: .. | AB25: .. | AC25: .. | AD25: .. | AE25: .. | AF25: .. | AG25: 120560 | AH25: 121668 | AI25: 121571 | AJ25: 122620 | AK25: 122688 | AL25: 122500 | AM25: 121735 | AN25: 122667 | AO25: 122859 | AP25: 121674
A26: For further information see Data Confidentiality
A27: INFO: Statistical disclosure control has been applied to this table to avoid the release of confidential data. Totals may not sum due to the disclosure control applied.
A28: Annotation Descriptions
A29: Symbol | B29: Description
A30: I | B30: The move to publishing benefit data via the Stat-Xplore instead of the DWP Tabulation Tool has involved adopting a new disclosure control methodology, in line with other benefits published via this new tool. Although the data still comes from the same source there may be small differences in the outputs displayed using this new tool, when compared to the Tabulation Tool.
A31: III | B31: ".." denotes a nil or negligible number of claimants or award amount based on a nil or negligible number of claimants.

Sheet CA-Duration by age
A1: CA: Cases in Payment - Data from May 2018 (I III)
A2: Duration of Claim and Quarter by Age (bands and single year) by National - Regional - LA - OAs
A3: Counting: CA (In Payment) - 2011 Geographies
A5: Filters:
A6: Default Summation | B6: CA (In Payment) - 2011 Geographies
A7: National - Regional - LA - OAs | B7: Scotland
A9: Age (bands and single year) | D9: Under 18 | E9: 18-24 | F9: 25-29 | G9: 30-34 | H9: 35-39 | I9: 40-44 | J9: 45-49 | K9: 50-54 | L9: 55-59 | M9: 60-64 | N9: 65 and over | O9: Unknown | P9: Total
B10: Duration of Claim | C10: Quarter
B11: Up to 3 months | C11: Aug-20 | D11: 134 | E11: 304 | F11: 207 | G11: 279 | H11: 236 | I11: 179 | J11: 179 | K11: 188 | L11: 239 | M11: 240 | N11: 30 | O11: .. | P11: 2218
B12: 3 months up to 6 months | C12: Aug-20 | D12: 143 | E12: 466 | F12: 349 | G12: 418 | H12: 411 | I12: 349 | J12: 299 | K12: 363 | L12: 469 | M12: 495 | N12: 116 | O12: .. | P12: 3870
B13: 6 months up to 1 year | C13: Aug-20 | D13: 139 | E13: 676 | F13: 613 | G13: 843 | H13: 810 | I13: 615 | J13: 564 | K13: 659 | L13: 746 | M13: 875 | N13: 221 | O13: .. | P13: 6778
B14: 1 year and up to 2 years | C14: Aug-20 | D14: 107 | E14: 1034 | F14: 1105 | G14: 1522 | H14: 1457 | I14: 1130 | J14: 1085 | K14: 1182 | L14: 1311 | M14: 1558 | N14: 399 | O14: .. | P14: 11886
B15: 2 years and up to 5 years | C15: Aug-20 | D15: .. | E15: 1266 | F15: 1942 | G15: 2843 | H15: 3134 | I15: 2834 | J15: 2692 | K15: 2857 | L15: 3142 | M15: 3563 | N15: 889 | O15: .. | P15: 25151
B16: 5 years and over | C16: Aug-20 | D16: .. | E16: 190 | F16: 1006 | G16: 2123 | H16: 3224 | I16: 3627 | J16: 4676 | K16: 5501 | L16: 5619 | M16: 5630 | N16: 1501 | O16: .. | P16: 33099
B17: Unknown | C17: Aug-20 | D17: .. | E17: .. | F17: .. | G17: .. | H17: .. | I17: .. | J17: .. | K17: .. | L17: .. | M17: .. | N17: .. | O17: .. | P17: ..
B18: Total | C18: Aug-20 | D18: 528 | E18: 3928 | F18: 5225 | G18: 8030 | H18: 9268 | I18: 8733 | J18: 9489 | K18: 10759 | L18: 11523 | M18: 12363 | N18: 3164 | O18: .. | P18: 83009
A21: INFO | B21: Statistical disclosure control has been applied to this table to avoid the release of confidential data. Totals may not sum due to the disclosure control applied.
A22: Symbol | B22: Description
A24: I | B24: The move to publishing benefit data via the Stat-Xplore instead of the DWP Tabulation Tool has involved adopting a new disclosure control methodology, in line with other benefits published via this new tool. Although the data still comes from the same source there may be small differences in the outputs displayed using this new tool, when compared to the Tabulation Tool.
A25: III | B25: ".." denotes a nil or negligible number of claimants or award amount based on a nil or negligible number of claimants.

Sheet CA- LA by duration
A1: Quarter | C1: Aug-20
A2: CA (In Payment) - 2011 Geographies
A3: Duration of Claim | C3: Up to 3 months | D3: 3 months up to 6 months | E3: 6 months up to 1 year | F3: 1 year and up to 2 years | G3: 2 years and up to 5 years | H3: 5 years and over | I3: Unknown | J3: Total
B4: National - Regional - LA - OAs
B5: Aberdeen City | C5: 46 | D5: 77 | E5: 165 | F5: 234 | G5: 528 | H5: 631 | I5: .. | J5: 1686
B6: Aberdeenshire | C6: 68 | D6: 114 | E6: 162 | F6: 303 | G6: 729 | H6: 844 | I6: .. | J6: 2224
B7: Angus | C7: 41 | D7: 77 | E7: 137 | F7: 231 | G7: 487 | H7: 629 | I7: .. | J7: 1600
B8: Argyll and Bute | C8: 20 | D8: 50 | E8: 88 | F8: 135 | G8: 335 | H8: 444 | I8: .. | J8: 1075
B9: City of Edinburgh | C9: 118 | D9: 205 | E9: 347 | F9: 630 | G9: 1410 | H9: 2035 | I9: .. | J9: 4740
B10: Clackmannanshire | C10: 29 | D10: 49 | E10: 84 | F10: 130 | G10: 294 | H10: 364 | I10: .. | J10: 947
B11: Dumfries and Galloway | C11: 71 | D11: 133 | E11: 258 | F11: 383 | G11: 763 | H11: 1041 | I11: .. | J11: 2649
B12: Dundee City | C12: 66 | D12: 137 | E12: 225 | F12: 444 | G12: 807 | H12: 1035 | I12: .. | J12: 2713
B13: East Ayrshire | C13: 74 | D13: 135 | E13: 191 | F13: 377 | G13: 764 | H13: 963 | I13: .. | J13: 2506
B14: East Dunbartonshire | C14: 31 | D14: 67 | E14: 99 | F14: 194 | G14: 321 | H14: 466 | I14: .. | J14: 1165
B15: East Lothian | C15: 35 | D15: 65 | E15: 112 | F15: 185 | G15: 350 | H15: 523 | I15: .. | J15: 1276
B16: East Renfrewshire | C16: 26 | D16: 56 | E16: 77 | F16: 164 | G16: 323 | H16: 385 | I16: .. | J16: 1030
B17: Falkirk | C17: 81 | D17: 119 | E17: 218 | F17: 387 | G17: 807 | H17: 994 | I17: .. | J17: 2613
B18: Fife | C18: 151 | D18: 300 | E18: 552 | F18: 979 | G18: 1975 | H18: 2369 | I18: .. | J18: 6325
B19: Glasgow City | C19: 319 | D19: 535 | E19: 1013 | F19: 1782 | G19: 4008 | H19: 5675 | I19: .. | J19: 13328
B20: Highland | C20: 69 | D20: 121 | E20: 242 | F20: 417 | G20: 844 | H20: 1231 | I20: .. | J20: 2928
B21: Inverclyde | C21: 53 | D21: 67 | E21: 116 | F21: 272 | G21: 464 | H21: 663 | I21: .. | J21: 1635
B22: Midlothian | C22: 50 | D22: 66 | E22: 137 | F22: 201 | G22: 436 | H22: 528 | I22: .. | J22: 1415
B23: Moray | C23: 42 | D23: 62 | E23: 86 | F23: 145 | G23: 310 | H23: 420 | I23: .. | J23: 1068
B24: Na h-Eileanan Siar | C24: 5 | D24: 16 | E24: 27 | F24: 44 | G24: 76 | H24: 88 | I24: .. | J24: 249
B25: North Ayrshire | C25: 86 | D25: 129 | E25: 252 | F25: 432 | G25: 871 | H25: 1113 | I25: .. | J25: 2882
B26: North Lanarkshire | C26: 196 | D26: 333 | E26: 550 | F26: 1072 | G26: 2102 | H26: 2826 | I26: .. | J26: 7085
B27: Orkney Islands | C27: .. | D27: 10 | E27: 9 | F27: 38 | G27: 63 | H27: 83 | I27: .. | J27: 209
B28: Perth and Kinross | C28: 48 | D28: 87 | E28: 172 | F28: 275 | G28: 546 | H28: 663 | I28: .. | J28: 1791
B29: Renfrewshire | C29: 85 | D29: 120 | E29: 200 | F29: 359 | G29: 859 | H29: 1112 | I29: .. | J29: 2734
B30: Scottish Borders | C30: 30 | D30: 43 | E30: 98 | F30: 172 | G30: 386 | H30: 556 | I30: .. | J30: 1294
B31: Shetland Islands | C31: 6 | D31: 8 | E31: 16 | F31: 27 | G31: 50 | H31: 59 | I31: .. | J31: 166
B32: South Ayrshire | C32: 61 | D32: 94 | E32: 141 | F32: 248 | G32: 586 | H32: 715 | I32: .. | J32: 1850
B33: South Lanarkshire | C33: 142 | D33: 273 | E33: 468 | F33: 797 | G33: 1839 | H33: 2385 | I33: .. | J33: 5903
B34: Stirling | C34: 35 | D34: 69 | E34: 93 | F34: 160 | G34: 330 | H34: 430 | I34: .. | J34: 1107
B35: West Dunbartonshire | C35: 38 | D35: 85 | E35: 136 | F35: 213 | G35: 530 | H35: 771 | I35: .. | J35: 1772
B36: West Lothian | C36: 91 | D36: 165 | E36: 289 | F36: 464 | G36: 979 | H36: 1074 | I36: .. | J36: 3057
B37: Total | C37: 2218 | D37: 3870 | E37: 6778 | F37: 11886 | G37: 25151 | H37: 33099 | I37: .. | J37: 83009

Sheet CA- LA by age
A1: CA: Cases in Payment - Data from May 2018 (I III)
A2: National - Regional - LA - OAs by Quarter and Age (bands and single year)
A3: Counting: CA (In Payment) - 2011 Geographies
A5: Filters:
A6: Default Summation | B6: CA (In Payment) - 2011 Geographies
A8: Quarter | D8: Aug-20
A9: Age (bands and single year) | C9: Total | D9: Under 18 | E9: 18-24 | F9: 25-29 | G9: 30-34 | H9: 35-39 | I9: 40-44 | J9: 45-49 | K9: 50-54 | L9: 55-59 | M9: 60-64 | N9: 65 and over | O9: Unknown | P9: Total
B10: National - Regional - LA - OAs
B11: Aberdeen City | C11: 1645 | D11: 12 | E11: 53 | F11: 111 | G11: 165 | H11: 217 | I11: 216 | J11: 203 | K11: 198 | L11: 218 | M11: 236 | N11: 59 | O11: .. | P11: 1686
B12: Aberdeenshire | C12: 2145 | D12: 11 | E12: 82 | F12: 121 | G12: 208 | H12: 244 | I12: 258 | J12: 287 | K12: 324 | L12: 286 | M12: 312 | N12: 81 | O12: .. | P12: 2224
B13: Angus | C13: 1566 | D13: 8 | E13: 77 | F13: 93 | G13: 170 | H13: 183 | I13: 173 | J13: 170 | K13: 196 | L13: 229 | M13: 250 | N13: 51 | O13: .. | P13: 1600
B14: Argyll and Bute | C14: 1047 | D14: 6 | E14: 38 | F14: 45 | G14: 84 | H14: 109 | I14: 105 | J14: 132 | K14: 151 | L14: 155 | M14: 191 | N14: 58 | O14: .. | P14: 1075
B15: City of Edinburgh | C15: 4621 | D15: 28 | E15: 184 | F15: 286 | G15: 491 | H15: 559 | I15: 557 | J15: 577 | K15: 603 | L15: 671 | M15: 614 | N15: 177 | O15: .. | P15: 4740
B16: Clackmannanshire | C16: 934 | D16: 11 | E16: 52 | F16: 61 | G16: 104 | H16: 95 | I16: 89 | J16: 108 | K16: 124 | L16: 139 | M16: 139 | N16: 24 | O16: .. | P16: 947
B17: Dumfries and Galloway | C17: 2599 | D17: 18 | E17: 146 | F17: 168 | G17: 230 | H17: 289 | I17: 225 | J17: 286 | K17: 320 | L17: 381 | M17: 463 | N17: 116 | O17: .. | P17: 2649
B18: Dundee City | C18: 2654 | D18: 15 | E18: 139 | F18: 185 | G18: 301 | H18: 348 | I18: 295 | J18: 291 | K18: 350 | L18: 333 | M18: 374 | N18: 80 | O18: .. | P18: 2713
B19: East Ayrshire | C19: 2460 | D19: 18 | E19: 134 | F19: 190 | G19: 240 | H19: 217 | I19: 234 | J19: 281 | K19: 301 | L19: 366 | M19: 438 | N19: 90 | O19: .. | P19: 2506
B20: East Dunbartonshire | C20: 1136 | D20: .. | E20: 38 | F20: 57 | G20: 82 | H20: 97 | I20: 150 | J20: 133 | K20: 155 | L20: 184 | M20: 214 | N20: 52 | O20: .. | P20: 1165
B21: East Lothian | C21: 1222 | D21: .. | E21: 50 | F21: 73 | G21: 129 | H21: 135 | I21: 126 | J21: 156 | K21: 185 | L21: 186 | M21: 193 | N21: 38 | O21: .. | P21: 1276
B22: East Renfrewshire | C22: 1001 | D22: 7 | E22: 42 | F22: 43 | G22: 73 | H22: 92 | I22: 118 | J22: 133 | K22: 166 | L22: 146 | M22: 171 | N22: 40 | O22: .. | P22: 1030
B23: Falkirk | C23: 2527 | D23: 23 | E23: 135 | F23: 180 | G23: 231 | H23: 287 | I23: 276 | J23: 310 | K23: 333 | L23: 346 | M23: 408 | N23: 84 | O23: .. | P23: 2613
B24: Fife | C24: 6179 | D24: 46 | E24: 317 | F24: 413 | G24: 663 | H24: 690 | I24: 675 | J24: 735 | K24: 793 | L24: 844 | M24: 926 | N24: 224 | O24: .. | P24: 6325
B25: Glasgow City | C25: 13030 | D25: 62 | E25: 649 | F25: 903 | G25: 1332 | H25: 1619 | I25: 1484 | J25: 1508 | K25: 1746 | L25: 1830 | M25: 1704 | N25: 497 | O25: .. | P25: 13328
B26: Highland | C26: 2874 | D26: 13 | E26: 118 | F26: 152 | G26: 262 | H26: 336 | I26: 306 | J26: 352 | K26: 391 | L26: 440 | M26: 439 | N26: 125 | O26: .. | P26: 2928
B27: Inverclyde | C27: 1615 | D27: 16 | E27: 85 | F27: 109 | G27: 151 | H27: 168 | I27: 158 | J27: 185 | K27: 221 | L27: 246 | M27: 232 | N27: 57 | O27: .. | P27: 1635
B28: Midlothian | C28: 1361 | D28: 12 | E28: 61 | F28: 120 | G28: 148 | H28: 204 | I28: 145 | J28: 161 | K28: 164 | L28: 164 | M28: 202 | N28: 48 | O28: .. | P28: 1415
B29: Moray | C29: 1006 | D29: .. | E29: 30 | F29: 81 | G29: 114 | H29: 124 | I29: 107 | J29: 108 | K29: 117 | L29: 159 | M29: 185 | N29: 39 | O29: .. | P29: 1068
B30: Na h-Eileanan Siar | C30: 244 | D30: .. | E30: 8 | F30: 13 | G30: 15 | H30: 9 | I30: 17 | J30: 29 | K30: 33 | L30: 38 | M30: 71 | N30: 15 | O30: .. | P30: 249
B31: North Ayrshire | C31: 2813 | D31: 28 | E31: 151 | F31: 179 | G31: 278 | H31: 285 | I31: 254 | J31: 309 | K31: 384 | L31: 417 | M31: 473 | N31: 131 | O31: .. | P31: 2882
B32: North Lanarkshire | C32: 6900 | D32: 66 | E32: 362 | F32: 442 | G32: 669 | H32: 815 | I32: 717 | J32: 824 | K32: 857 | L32: 973 | M32: 1087 | N32: 271 | O32: .. | P32: 7085
B33: Orkney Islands | C33: 198 | D33: .. | E33: .. | F33: 12 | G33: 20 | H33: 20 | I33: 15 | J33: 24 | K33: 39 | L33: 36 | M33: 34 | N33: 9 | O33: .. | P33: 209
B34: Perth and Kinross | C34: 1745 | D34: 15 | E34: 92 | F34: 140 | G34: 160 | H34: 214 | I34: 196 | J34: 210 | K34: 220 | L34: 203 | M34: 261 | N34: 89 | O34: .. | P34: 1791
B35: Renfrewshire | C35: 2657 | D35: 15 | E35: 138 | F35: 148 | G35: 252 | H35: 311 | I35: 288 | J35: 317 | K35: 372 | L35: 352 | M35: 433 | N35: 98 | O35: .. | P35: 2734
B36: Scottish Borders | C36: 1270 | D36: 6 | E36: 47 | F36: 55 | G36: 114 | H36: 136 | I36: 116 | J36: 131 | K36: 200 | L36: 222 | M36: 213 | N36: 49 | O36: .. | P36: 1294
B37: Shetland Islands | C37: 153 | D37: .. | E37: .. | F37: 12 | G37: 14 | H37: 20 | I37: 20 | J37: 22 | K37: 14 | L37: 30 | M37: 18 | N37: 16 | O37: .. | P37: 166
B38: South Ayrshire | C38: 1796 | D38: 11 | E38: 86 | F38: 120 | G38: 160 | H38: 175 | I38: 152 | J38: 206 | K38: 228 | L38: 295 | M38: 331 | N38: 85 | O38: .. | P38: 1850
B39: South Lanarkshire | C39: 5792 | D39: 46 | E39: 283 | F39: 341 | G39: 555 | H39: 643 | I39: 646 | J39: 652 | K39: 758 | L39: 841 | M39: 902 | N39: 231 | O39: .. | P39: 5903
B40: Stirling | C40: 1080 | D40: 13 | E40: 44 | F40: 64 | G40: 103 | H40: 109 | I40: 109 | J40: 124 | K40: 177 | L40: 138 | M40: 176 | N40: 44 | O40: .. | P40: 1107
B41: West Dunbartonshire | C41: 1743 | D41: 10 | E41: 76 | F41: 106 | G41: 168 | H41: 192 | I41: 199 | J41: 181 | K41: 221 | L41: 262 | M41: 293 | N41: 79 | O41: .. | P41: 1772
B42: West Lothian | C42: 2963 | D42: 33 | E42: 199 | F42: 207 | G42: 333 | H42: 334 | I42: 323 | J42: 337 | K42: 404 | L42: 385 | M42: 400 | N42: 93 | O42: .. | P42: 3057
B43: Total | C43: 80963 | D43: 528 | E43: 3928 | F43: 5225 | G43: 8030 | H43: 9268 | I43: 8733 | J43: 9489 | K43: 10759 | L43: 11523 | M43: 12363 | N43: 3164 | O43: .. | P43: 83009

Sheet CA- LA by gender
A1: CA: Cases in Payment - Data from May 2018 (I III)
A2: National - Regional - LA - OAs by Quarter, Measures and Gender
A3: Counting: Mean of Weekly Award Amount, CA (In Payment) - 2011 Geographies
A5: Quarter | C5: Aug-20
A6: Measures | C6: Mean of Weekly Award Amount | G6: CA (In Payment) - 2011 Geographies
A7: Gender | C7: Male | D7: Female | E7: Unknown | F7: Total | G7: Male | H7: Female | I7: Unknown | J7: Total
B8: National - Regional - LA - OAs
B9: Aberdeen City | C9: 67.11 | D9: 67.12 | E9: .. | F9: 67.12 | G9: 460 | H9: 1228 | I9: .. | J9: 1686
B10: Aberdeenshire | C10: 67.04 | D10: 67.14 | E10: .. | F10: 67.12 | G10: 515 | H10: 1709 | I10: .. | J10: 2224
B11: Angus | C11: 67.13 | D11: 67.17 | E11: .. | F11: 67.16 | G11: 455 | H11: 1139 | I11: .. | J11: 1600
B12: Argyll and Bute | C12: 66.92 | D12: 66.87 | E12: .. | F12: 66.89 | G12: 370 | H12: 708 | I12: .. | J12: 1075
B13: City of Edinburgh | C13: 67.11 | D13: 66.86 | E13: .. | F13: 66.94 | G13: 1399 | H13: 3340 | I13: .. | J13: 4740
B14: Clackmannanshire | C14: 67.26 | D14: 67.23 | E14: .. | F14: 67.23 | G14: 281 | H14: 670 | I14: .. | J14: 947
B15: Dumfries and Galloway | C15: 67.18 | D15: 66.93 | E15: .. | F15: 67.01 | G15: 837 | H15: 1810 | I15: .. | J15: 2649
B16: Dundee City | C16: 67.25 | D16: 67.03 | E16: .. | F16: 67.1 | G16: 920 | H16: 1795 | I16: .. | J16: 2713
B17: East Ayrshire | C17: 67.11 | D17: 66.86 | E17: .. | F17: 66.95 | G17: 859 | H17: 1647 | I17: .. | J17: 2506
B18: East Dunbartonshire | C18: 67.2 | D18: 67.13 | E18: .. | F18: 67.15 | G18: 377 | H18: 795 | I18: .. | J18: 1165
B19: East Lothian | C19: 67.07 | D19: 66.92 | E19: .. | F19: 66.97 | G19: 360 | H19: 911 | I19: .. | J19: 1276
B20: East Renfrewshire | C20: 66.88 | D20: 66.91 | E20: .. | F20: 66.9 | G20: 318 | H20: 712 | I20: .. | J20: 1030
B21: Falkirk | C21: 67.16 | D21: 67.14 | E21: .. | F21: 67.14 | G21: 777 | H21: 1838 | I21: .. | J21: 2613
B22: Fife | C22: 67.2 | D22: 66.92 | E22: .. | F22: 67.01 | G22: 2022 | H22: 4305 | I22: .. | J22: 6325
B23: Glasgow City | C23: 67.07 | D23: 66.98 | E23: .. | F23: 67.01 | G23: 4490 | H23: 8833 | I23: .. | J23: 13328
B24: Highland | C24: 67.15 | D24: 66.87 | E24: .. | F24: 66.95 | G24: 844 | H24: 2084 | I24: .. | J24: 2928
B25: Inverclyde | C25: 67.25 | D25: 67.07 | E25: .. | F25: 67.13 | G25: 562 | H25: 1069 | I25: .. | J25: 1635
B26: Midlothian | C26: 67.2 | D26: 66.91 | E26: .. | F26: 66.99 | G26: 399 | H26: 1014 | I26: .. | J26: 1415
B27: Moray | C27: 66.81 | D27: 66.7 | E27: .. | F27: 66.72 | G27: 271 | H27: 792 | I27: .. | J27: 1068
B28: Na h-Eileanan Siar | C28: 66.6 | D28: 66.49 | E28: .. | F28: 66.52 | G28: 87 | H28: 162 | I28: .. | J28: 249
B29: North Ayrshire | C29: 67.04 | D29: 66.88 | E29: .. | F29: 66.93 | G29: 964 | H29: 1924 | I29: .. | J29: 2882
B30: North Lanarkshire | C30: 67.15 | D30: 67 | E30: .. | F30: 67.05 | G30: 2276 | H30: 4809 | I30: .. | J30: 7085
B31: Orkney Islands | C31: 67.26 | D31: 67.27 | E31: .. | F31: 67.25 | G31: 70 | H31: 139 | I31: .. | J31: 209
B32: Perth and Kinross | C32: 66.83 | D32: 66.91 | E32: .. | F32: 66.89 | G32: 498 | H32: 1297 | I32: .. | J32: 1791
B33: Renfrewshire | C33: 67.13 | D33: 67.07 | E33: .. | F33: 67.09 | G33: 863 | H33: 1871 | I33: .. | J33: 2734
B34: Scottish Borders | C34: 67.25 | D34: 66.93 | E34: .. | F34: 67.03 | G34: 437 | H34: 855 | I34: .. | J34: 1294
B35: Shetland Islands | C35: 66.48 | D35: 66.06 | E35: .. | F35: 66.18 | G35: 52 | H35: 117 | I35: .. | J35: 166
B36: South Ayrshire | C36: 67.16 | D36: 66.83 | E36: .. | F36: 66.95 | G36: 646 | H36: 1199 | I36: .. | J36: 1850
B37: South Lanarkshire | C37: 67.15 | D37: 66.98 | E37: .. | F37: 67.03 | G37: 1745 | H37: 4159 | I37: .. | J37: 5903
B38: Stirling | C38: 66.84 | D38: 66.93 | E38: .. | F38: 66.9 | G38: 347 | H38: 758 | I38: .. | J38: 1107
B39: West Dunbartonshire | C39: 67.24 | D39: 66.99 | E39: .. | F39: 67.07 | G39: 565 | H39: 1208 | I39: .. | J39: 1772
B40: West Lothian | C40: 67.25 | D40: 66.86 | E40: .. | F40: 66.98 | G40: 922 | H40: 2134 | I40: .. | J40: 3057
B41: Total | C41: 67.12 | D41: 66.96 | E41: .. | F41: 67.01 | G41: 25992 | H41: 57016 | I41: .. | J41: 83009
A44: INFO | B44: Statistical disclosure control has been applied to this table to avoid the release of confidential data. Totals may not sum due to the disclosure control applied.
A45: Symbol | B45: Description
A47: I | B47: The move to publishing benefit data via the Stat-Xplore instead of the DWP Tabulation Tool has involved adopting a new disclosure control methodology, in line with other benefits published via this new tool. Although the data still comes from the same source there may be small differences in the outputs displayed using this new tool, when compared to the Tabulation Tool.
A48: III | B48: ".." denotes a nil or negligible number of claimants or award amount based on a nil or negligible number of claimants.

Sheet CA-client type
A1: CA: Cases in Payment - Data from May 2018 (I III)
A2: National - Regional - LA - OAs by Quarter, CA (In Payment) - 2011 Geographies and Client type
A3: Counting: CA (In Payment) - 2011 Geographies
A5: Quarter | C5: Aug-20
A6: CA (In Payment) - 2011 Geographies
A7: Client type | C7: Children | D7: Working age | E7: Over State Pension age | F7: Total
B8: National - Regional - LA - OAs
B9: Aberdeen City | C9: .. | D9: 1678 | E9: 9 | F9: 1686
B10: Aberdeenshire | C10: .. | D10: 2207 | E10: 13 | F10: 2224
B11: Angus | C11: .. | D11: 1592 | E11: 6 | F11: 1600
B12: Argyll and Bute | C12: .. | D12: 1059 | E12: 15 | F12: 1075
B13: City of Edinburgh | C13: .. | D13: 4683 | E13: 61 | F13: 4740
B14: Clackmannanshire | C14: .. | D14: 944 | E14: 7 | F14: 947
B15: Dumfries and Galloway | C15: .. | D15: 2630 | E15: 23 | F15: 2649
B16: Dundee City | C16: .. | D16: 2697 | E16: 20 | F16: 2713
B17: East Ayrshire | C17: .. | D17: 2485 | E17: 24 | F17: 2506
B18: East Dunbartonshire | C18: .. | D18: 1165 | E18: 7 | F18: 1165
B19: East Lothian | C19: .. | D19: 1267 | E19: 6 | F19: 1276
B20: East Renfrewshire | C20: .. | D20: 1020 | E20: 10 | F20: 1030
B21: Falkirk | C21: .. | D21: 2604 | E21: 8 | F21: 2613
B22: Fife | C22: .. | D22: 6276 | E22: 52 | F22: 6325
B23: Glasgow City | C23: .. | D23: 13199 | E23: 129 | F23: 13328
B24: Highland | C24: .. | D24: 2902 | E24: 23 | F24: 2928
B25: Inverclyde | C25: .. | D25: 1627 | E25: 6 | F25: 1635
B26: Midlothian | C26: .. | D26: 1406 | E26: 10 | F26: 1415
B27: Moray | C27: .. | D27: 1054 | E27: 9 | F27: 1068
B28: Na h-Eileanan Siar | C28: .. | D28: 245 | E28: .. | F28: 249
B29: North Ayrshire | C29: .. | D29: 2856 | E29: 25 | F29: 2882
B30: North Lanarkshire | C30: .. | D30: 7037 | E30: 52 | F30: 7085
B31: Orkney Islands | C31: .. | D31: 205 | E31: .. | F31: 209
B32: Perth and Kinross | C32: .. | D32: 1763 | E32: 28 | F32: 1791
B33: Renfrewshire | C33: .. | D33: 2711 | E33: 23 | F33: 2734
B34: Scottish Borders | C34: .. | D34: 1283 | E34: 9 | F34: 1294
B35: Shetland Islands | C35: .. | D35: 161 | E35: 5 | F35: 166
B36: South Ayrshire | C36: .. | D36: 1829 | E36: 16 | F36: 1850
B37: South Lanarkshire | C37: .. | D37: 5850 | E37: 49 | F37: 5903
B38: Stirling | C38: .. | D38: 1096 | E38: 15 | F38: 1107
B39: West Dunbartonshire | C39: .. | D39: 1758 | E39: 14 | F39: 1772
B40: West Lothian | C40: .. | D40: 3037 | E40: 20 | F40: 3057
B41: Total | C41: .. | D41: 82311 | E41: 699 | F41: 83009
A44: INFO | B44: Statistical disclosure control has been applied to this table to avoid the release of confidential data. Totals may not sum due to the disclosure control applied.
A45: Symbol | B45: Description
A47: I | B47: The move to publishing benefit data via the Stat-Xplore instead of the DWP Tabulation Tool has involved adopting a new disclosure control methodology, in line with other benefits published via this new tool. Although the data still comes from the same source there may be small differences in the outputs displayed using this new tool, when compared to the Tabulation Tool.
A48: III | B48: ".." denotes a nil or negligible number of claimants or award amount based on a nil or negligible number of claimants.

Sheet CA-Gender
A1: CA Cases In Payment | D1: Contents
A2: Gender by Quarter by National - Regional - LA - OAs
A3: Counting: CA (In Payment)
A5: Filters:
A6: Default Summation | B6: CA (In Payment)
A7: National - Regional - LA - OAs | B7: Scotland
A9: Quarter
B10: Gender
B11: Male
B12: Female
B13: Unknown
B14: Total
A16: Symbol | B16: Description
A18: I | B18: The move to publishing benefit data via the Stat-Xplore instead of the DWP Tabulation Tool has involved adopting a new disclosure control methodology, in line with other benefits published via this new tool. Although the data still comes from the same source there may be small differences in the outputs displayed using this new tool, when compared to the Tabulation Tool.
A19: III | B19: ".." denotes a nil or negligible number of claimants or award amount based on a nil or negligible number of claimants.
A20: II | B20: Between May 2007 to November 2007 location information for some claimants is unavailable, causing a slight rise in the number of unknown geographies. Statistics for this period which show geography information should therefore be interpreted with care.

Sheet SDA-Claimant Count
A1: SDA - Claimant count | D1: Contents
A3: Dataset: Incapacity Benefit and Severe Disablement Allowance
A4: Rows: Benefit Combination (SDA)
A5: Columns: Quarters
A6: Filter: National - Regional - LA - OAS : Scotland, deafult summation
A8: Quarter
A9: Aug-99 | B9: 42047
A10: Nov-99 | B10: 41835
A11: Feb-00 | B11: 41661
A12: May-00 | B12: 41648
A13: Aug-00 | B13: 41637
A14: Nov-00 | B14: 41606
A15: Feb-01 | B15: 41652
A16: May-01 | B16: 41348
A17: Aug-01 | B17: 40836
A18: Nov-01 | B18: 39841
A19: Feb-02 | B19: 39692
A20: May-02 | B20: 37108
A21: Aug-02 | B21: 36704
A22: Nov-02 | B22: 36271
A23: Feb-03 | B23: 35821
A24: May-03 | B24: 35368
A25: Aug-03 | B25: 34969
A26: Nov-03 | B26: 34555
A27: Feb-04 | B27: 34182
A28: May-04 | B28: 33769
A29: Aug-04 | B29: 33465
A30: Nov-04 | B30: 33169
A31: Feb-05 | B31: 32798
A32: May-05 | B32: 32430
A33: Aug-05 | B33: 32083
A34: Nov-05 | B34: 31762
A35: Feb-06 | B35: 31394
A36: May-06 | B36: 31027
A37: Aug-06 | B37: 30661
A38: Nov-06 | B38: 30286
A39: Feb-07 | B39: 29924
A40: May-07 | B40: 29559
A41: Aug-07 | B41: 29219
A42: Nov-07 | B42: 28924
A43: Feb-08 | B43: 28583
A44: May-08 | B44: 28233
A45: Aug-08 | B45: 27895
A46: Nov-08 | B46: 27561
A47: Feb-09 | B47: 27230
A48: May-09 | B48: 26928
A49: Aug-09 | B49: 26669
A50: Nov-09 | B50: 26355
A51: Feb-10 | B51: 26073
A52: May-10 | B52: 25758
A53: Aug-10 | B53: 25512
A54: Nov-10 | B54: 25185
A55: Feb-11 | B55: 24879
A56: May-11 | B56: 24631
A57: Aug-11 | B57: 24363
A58: Nov-11 | B58: 24108
A59: Feb-12 | B59: 23875
A60: May-12 | B60: 23539
A61: Aug-12 | B61: 23253
A62: Nov-12 | B62: 22819
A63: Feb-13 | B63: 22363
A64: May-13 | B64: 21987
A65: Aug-13 | B65: 21502
A66: Nov-13 | B66: 20763
A67: Feb-14 | B67: 19657
A68: May-14 | B68: 18735
A69: Aug-14 | B69: 18012
A70: Nov-14 | B70: 16577
A71: Feb-15 | B71: 15098
A72: May-15 | B72: 13466
A73: Aug-15 | B73: 11876
A74: Nov-15 | B74: 10627
A75: Feb-16 | B75: 8157
A76: May-16 | B76: 5941
A77: Aug-16 | B77: 4835
A78: Nov-16 | B78: 3989
A79: Feb-17 | B79: 3270
A80: May-17 | B80: 2854
A81: Aug-17 | B81: 2681
A82: Nov-17 | B82: 2524
A83: Feb-18 | B83: 2266
A84: May-18 | B84: 2090
A85: Aug-18 | B85: 2018
A86: Nov-18 | B86: 1955
A87: Feb-19 | B87: 1878
A88: May-19 | B88: 1829
A89: Aug-19 | B89: 1784
A90: Nov-19 | B90: 1728
A91: Feb-20 | B91: 1673
A92: May-20 | B92: 1613
A93: Aug-20 | B93: 1570
A94: Warning: This data does not include claimants of Employment and Support Allowance (ESA).
A95: The move to publishing benefit data via the Stat-Xplore instead of NOMIS has involved adopting a new disclosure control methodology, in line with other benefits published via this new toolto NOMIS.
A96: Although the data still comes from the same source there may be small differences in the outputs displayed using the new tool, when compared to NOMIS

Sheet SDA-Gender
A1: SDA - Gender of Claimant | D1: Contents
A3: Dataset: Incapacity Benefit and Severe Disablement Allowance
A4: Rows: Gender of Claimant
A5: Columns: Quarters: Feb-20
A6: Filter: National - Regional - LA - OAS : Scotland, Benefit comination: SDA
A8: Sex | B8: Aug-20
A9: Male | B9: 284
A10: Female | B10: 1285
A11: Total | B11: 1570
A12: Unknown | B12: -

Sheet SDA-Qualifying
A1: SDA - Qualifying Condition | C1: Contents
A3: Dataset: Incapacity Benefit and Severe Disablement Allowance
A4: Rows: Medical Condition
A6: Filter: National - Regional - LA - OAS : Scotland, Benefit comination: SDA
A9: Quarter | B9: Aug-20
A10: Medical condition (IV) | D10: Diseases of the Blood and Blood forming organs and certain diseases involving the immune mechanism | E10: ..
A11: Certain Infectious and Parasitic diseases | B11: 5 | D11: Diseases of the Skin and Subcutaneous System | E11: ..
A12: Neoplasms | B12: 17 | D12: Diseases of the Genito-urinary System | E12: ..
A13: Diseases of the Blood and Blood forming organs and certain diseases involving the immune mechanism | B13: .. | D13: Pregnancy, Childbirth and the Puerperium | E13: ..
A14: Endocrine, Nutritional and Metabolic diseases | B14: 17 | D14: Certain conditions originating in the Perinatal period | E14: ..
A15: Mental and Behavioural disorders | B15: 614 | D15: External causes of morbidity and mortality | E15: ..
A16: Diseases of the Nervous System | B16: 141 | D16: Codes for special purposes | E16: ..
A17: Diseases of the Eye and Adnexa | B17: 29 | D17: Unknown or claimants without diagnosis on the system | E17: ..
A18: Diseases of the Ear and Mastoid Process | B18: 10 | D18: Not available | E18: ..
A19: Diseases of the Circulatory System | B19: 75 | D19: Mental and Behavioural disorders | E19: 614
A20: Diseases of the Respiratory System | B20: 26 | D20: Symptoms, signs and abnormal Clinical and Laboratory findings, not elsewhere classified | E20: 347
A21: Diseases of the Digestive System | B21: 14 | D21: Disease of the Musculoskeletal System and Connective Tissue | E21: 219
A22: Diseases of the Skin and Subcutaneous System | B22: .. | D22: Diseases of the Nervous System | E22: 141
A23: Disease of the Musculoskeletal System and Connective Tissue | B23: 219 | D23: Diseases of the Circulatory System | E23: 75
A24: Diseases of the Genito-urinary System | B24: .. | D24: Diseases of the Eye and Adnexa | E24: 29
A25: Pregnancy, Childbirth and the Puerperium | B25: .. | D25: Factors influencing Health Status and contact with Health Services | E25: 27
A26: Certain conditions originating in the Perinatal period | B26: .. | D26: Diseases of the Respiratory System | E26: 26
A27: Congenital Malformations, Deformations and Chromosomal Abnormalities | B27: 12 | D27: Neoplasms | E27: 17
A28: Symptoms, signs and abnormal Clinical and Laboratory findings, not elsewhere classified | B28: 347 | D28: Endocrine, Nutritional and Metabolic diseases | E28: 17
A29: Injury, poisoning and certain other consequences of external causes | B29: 13 | D29: Diseases of the Digestive System | E29: 14
A30: External causes of morbidity and mortality | B30: .. | D30: Injury, poisoning and certain other consequences of external causes | E30: 13
A31: Factors influencing Health Status and contact with Health Services | B31: 27 | D31: Congenital Malformations, Deformations and Chromosomal Abnormalities | E31: 12
A32: Codes for special purposes | B32: .. | D32: Diseases of the Ear and Mastoid Process | E32: 10
A33: Unknown or claimants without diagnosis on the system | B33: .. | D33: Certain Infectious and Parasitic diseases | E33: 5
A34: Not available | B34: .. | D34: Medical condition (IV)
A35: Total | B35: 1570
A36: - These figures are missing.
A37: Warning: This data does not include claimants of Employment and Support Allowance (ESA).
A38: The move to publishing benefit data via the StatXplore instead of NOMIS has involved adopting a new disclosure control methodology, in line with other benefits published via StatXplore
A39: Although the data still comes from the same source there may be small differences in the outputs displayed using StatXplore, when compared to NOMIS

Sheet Carer's Allowance
A1: Summary Panel: Carer’s Allowance claimants to August 2020
A48: Table S1 Carer's Allowance claimants - to Aug 2020
A49: Payment Type | B49: ='CA-Payment type by age'!G11 -> May-19 | C49: ='CA-Payment type by age'!H11 -> Aug-19 | D49: ='CA-Payment type by age'!I11 -> Nov-19 | E49: ='CA-Payment type by age'!J11 -> Feb-20 | F49: ='CA-Payment type by age'!K11 -> May-20 | G49: ='CA-Payment type by age'!L11 -> 2020-08-01
A50: Entitlement only | B50: ='CA-Payment type by age'!G25 -> 44978 | C50: ='CA-Payment type by age'!H25 -> 44243 | D50: ='CA-Payment type by age'!I25 -> 43891 | E50: ='CA-Payment type by age'!J25 -> 43803 | F50: ='CA-Payment type by age'!K25 -> 41896 | G50: ='CA-Payment type by age'!L25 -> 38669
A51: Claimant receiving benefit | B51: ='CA-Payment type by age'!Q25 -> 77711 | C51: ='CA-Payment type by age'!R25 -> 78252 | D51: ='CA-Payment type by age'!S25 -> 77842 | E51: ='CA-Payment type by age'!T25 -> 78870 | F51: ='CA-Payment type by age'!U25 -> 80963 | G51: ='CA-Payment type by age'!V25 -> 83009
A52: Total | B52: ='CA-Payment type by age'!AK25 -> 122688 | C52: ='CA-Payment type by age'!AL25 -> 122500 | D52: ='CA-Payment type by age'!AM25 -> 121735 | E52: ='CA-Payment type by age'!AN25 -> 122667 | F52: ='CA-Payment type by age'!AO25 -> 122859 | G52: ='CA-Payment type by age'!AP25 -> 121674
A54: Table S2 Carer's Allowance claimants receiving benefit by gender - at Aug 2020
A55: Gender
A56: Total | B56: ='CA- LA by gender'!J41 -> 83009 | C56: =B56/B56 -> 1
A57: Female | B57: ='CA- LA by gender'!H41 -> 57016 | C57: =B57/B56 -> 0.6868652797
A58: Male | B58: ='CA- LA by gender'!G41 -> 25992 | C58: =B58/B56 -> 0.3131226734
A59: Unknown | B59: - | C59: =B59/B56 -> 
A61: Table S3 Carer's Allowance claimants receiving benefit by Age band - at Aug 2020
A62: Age band
A63: Total | B63: ='CA-Payment type by age'!V25 -> 83009 | C63: 1
A64: Under 18 | B64: ='CA-Payment type by age'!V13 -> 528 | C64: =B64/B$63 -> 0.006360756063
A65: 18-24 | B65: ='CA-Payment type by age'!V14 -> 3928 | C65: =B65/B$63 -> 0.0473201701
A66: 25-29 | B66: ='CA-Payment type by age'!V15 -> 5225 | C66: 0.06294498187
A67: 30-34 | B67: ='CA-Payment type by age'!V16 -> 8030 | C67: 0.09673649845
A68: 35-39 | B68: ='CA-Payment type by age'!V17 -> 9268 | C68: 0.1116505439
A69: 40-44 | B69: ='CA-Payment type by age'!V18 -> 8733 | C69: 0.1052054596
A70: 45-49 | B70: ='CA-Payment type by age'!V19 -> 9489 | C70: 0.1143129058
A71: 50-54 | B71: ='CA-Payment type by age'!V20 -> 10759 | C71: 0.1296124517
A72: 55-59 | B72: ='CA-Payment type by age'!V21 -> 11523 | C72: 0.1388162729
A73: 60-64 | B73: ='CA-Payment type by age'!V22 -> 12363 | C73: 0.1489356576
A74: 65 & over | B74: ='CA-Payment type by age'!V23 -> 3164 | C74: 0.03811634883
A75: Unknown | B75: ='CA-Payment type by age'!V24 -> ..
A77: Table S4 Carer's Allowance claimants receiving benefit by Duration of Claim - at Aug 2020
A78: Duration of Claim
A79: Total | B79: ='CA-Duration by age'!P18 -> 83009 | C79: 1
A80: Up to 3 months | B80: ='CA-Duration by age'!P11 -> 2218 | C80: =B80/B$79 -> 0.02671999422
A81: 3 to 6 months | B81: ='CA-Duration by age'!P12 -> 3870 | C81: =B81/B$79 -> 0.04662145069
A82: 6 to 12 months | B82: ='CA-Duration by age'!P13 -> 6778 | C82: 0.08165379658
A83: 1 to 2 years | B83: ='CA-Duration by age'!P14 -> 11886 | C83: 0.1431892927
A84: 2 to 5 years | B84: ='CA-Duration by age'!P15 -> 25151 | C84: 0.3029912419
A85: 5 years & over | B85: ='CA-Duration by age'!P16 -> 33099 | C85: 0.3987398957
A86: Unknown | B86: ='CA-Duration by age'!P17 -> ..
A88: Table S5 Carer's Allowance claimants by Entitlement - at Aug 2020
A89: Payment type
A90: Total | B90: =G52 -> 121674 | C90: 1
A91: Entitlement only | B91: =G50 -> 38669 | C91: =B91/B90 -> 0.3178082417
A92: Claimant receiving benefit | B92: =G51 -> 83009 | C92: =B92/B90 -> 0.682224633
A93: Entitled, payment status unknown | B93: ='CA-Payment type by age'!AB25 -> .. | C93: =B93/B90 -> 
A95: Table S6 Carer's Allowance claimants receiving benefit - Age band by Duration of Claim - at Aug 2020
B96: Duration of Claim
A97: Ageband | B97: Up to 3 months | C97: 3 to 6 months | D97: 6 to 12 months | E97: 1 to 2 years | F97: 2 to 5 years | G97: 5 years & over
A98: Under 18 | B98: ='CA-Duration by age'!$D11/'CA-Duration by age'!$D18 -> 0.2537878788 | C98: ='CA-Duration by age'!$D12/'CA-Duration by age'!$D18 -> 0.2708333333 | D98: ='CA-Duration by age'!$D13/'CA-Duration by age'!$D18 -> 0.2632575758 | E98: ='CA-Duration by age'!$D14/'CA-Duration by age'!$D18 -> 0.2026515152 | F98: ='CA-Duration by age'!$D15/'CA-Duration by age'!$D18 ->  | G98: ='CA-Duration by age'!$D16/'CA-Duration by age'!$D18 -> 
A99: 18-24 | B99: ='CA-Duration by age'!$E11/'CA-Duration by age'!$E18 -> 0.07739307536 | C99: ='CA-Duration by age'!$E12/'CA-Duration by age'!$E18 -> 0.1186354379 | D99: ='CA-Duration by age'!$E13/'CA-Duration by age'!$E18 -> 0.1720977597 | E99: ='CA-Duration by age'!$E14/'CA-Duration by age'!$E18 -> 0.2632382892 | F99: ='CA-Duration by age'!$E15/'CA-Duration by age'!$E18 -> 0.3223014257 | G99: ='CA-Duration by age'!$E16/'CA-Duration by age'!$E18 -> 0.0483706721
A100: 25-29 | B100: ='CA-Duration by age'!$F11/'CA-Duration by age'!$F18 -> 0.03961722488 | C100: ='CA-Duration by age'!$F12/'CA-Duration by age'!$F18 -> 0.06679425837 | D100: ='CA-Duration by age'!$F13/'CA-Duration by age'!$F18 -> 0.1173205742 | E100: ='CA-Duration by age'!$F14/'CA-Duration by age'!$F18 -> 0.2114832536 | F100: ='CA-Duration by age'!$F15/'CA-Duration by age'!$F18 -> 0.3716746411 | G100: ='CA-Duration by age'!$F16/'CA-Duration by age'!$F18 -> 0.1925358852
A101: 30-34 | B101: ='CA-Duration by age'!$G11/'CA-Duration by age'!$G18 -> 0.03474470735 | C101: ='CA-Duration by age'!$G12/'CA-Duration by age'!$G18 -> 0.05205479452 | D101: ='CA-Duration by age'!$G13/'CA-Duration by age'!$G18 -> 0.10498132 | E101: ='CA-Duration by age'!$G14/'CA-Duration by age'!$G18 -> 0.1895392279 | F101: ='CA-Duration by age'!$G15/'CA-Duration by age'!$G18 -> 0.3540473225 | G101: ='CA-Duration by age'!$G16/'CA-Duration by age'!$G18 -> 0.2643835616
A102: 35-39 | B102: ='CA-Duration by age'!$H11/'CA-Duration by age'!$H18 -> 0.02546396202 | C102: ='CA-Duration by age'!$H12/'CA-Duration by age'!$H18 -> 0.04434613725 | D102: ='CA-Duration by age'!$H13/'CA-Duration by age'!$H18 -> 0.08739749676 | E102: ='CA-Duration by age'!$H14/'CA-Duration by age'!$H18 -> 0.157207596 | F102: ='CA-Duration by age'!$H15/'CA-Duration by age'!$H18 -> 0.3381527838 | G102: ='CA-Duration by age'!$H16/'CA-Duration by age'!$H18 -> 0.3478636167
A103: 40-44 | B103: ='CA-Duration by age'!$I11/'CA-Duration by age'!$I18 -> 0.02049696553 | C103: ='CA-Duration by age'!$I12/'CA-Duration by age'!$I18 -> 0.03996335738 | D103: ='CA-Duration by age'!$I13/'CA-Duration by age'!$I18 -> 0.07042253521 | E103: ='CA-Duration by age'!$I14/'CA-Duration by age'!$I18 -> 0.1293942517 | F103: ='CA-Duration by age'!$I15/'CA-Duration by age'!$I18 -> 0.3245162029 | G103: ='CA-Duration by age'!$I16/'CA-Duration by age'!$I18 -> 0.4153211955
A104: 45-49 | B104: ='CA-Duration by age'!$J11/'CA-Duration by age'!$J18 -> 0.01886394773 | C104: ='CA-Duration by age'!$J12/'CA-Duration by age'!$J18 -> 0.03151016967 | D104: ='CA-Duration by age'!$J13/'CA-Duration by age'!$J18 -> 0.05943724312 | E104: ='CA-Duration by age'!$J14/'CA-Duration by age'!$J18 -> 0.1143429234 | F104: ='CA-Duration by age'!$J15/'CA-Duration by age'!$J18 -> 0.2836969122 | G104: ='CA-Duration by age'!$J16/'CA-Duration by age'!$J18 -> 0.492781115
A105: 50-54 | B105: ='CA-Duration by age'!$K11/'CA-Duration by age'!$K18 -> 0.01747374291 | C105: ='CA-Duration by age'!$K12/'CA-Duration by age'!$K18 -> 0.03373919509 | D105: ='CA-Duration by age'!$K13/'CA-Duration by age'!$K18 -> 0.06125104564 | E105: ='CA-Duration by age'!$K14/'CA-Duration by age'!$K18 -> 0.1098615113 | F105: ='CA-Duration by age'!$K15/'CA-Duration by age'!$K18 -> 0.265545125 | G105: ='CA-Duration by age'!$K16/'CA-Duration by age'!$K18 -> 0.5112928711
A106: 55-59 | B106: ='CA-Duration by age'!$L11/'CA-Duration by age'!$L18 -> 0.02074112644 | C106: ='CA-Duration by age'!$L12/'CA-Duration by age'!$L18 -> 0.04070120628 | D106: ='CA-Duration by age'!$L13/'CA-Duration by age'!$L18 -> 0.06474008505 | E106: ='CA-Duration by age'!$L14/'CA-Duration by age'!$L18 -> 0.1137724551 | F106: ='CA-Duration by age'!$L15/'CA-Duration by age'!$L18 -> 0.2726720472 | G106: ='CA-Duration by age'!$L16/'CA-Duration by age'!$L18 -> 0.4876334288
A107: 60-64 | B107: ='CA-Duration by age'!$M11/'CA-Duration by age'!$M18 -> 0.01941276389 | C107: ='CA-Duration by age'!$M12/'CA-Duration by age'!$M18 -> 0.04003882553 | D107: ='CA-Duration by age'!$M13/'CA-Duration by age'!$M18 -> 0.07077570169 | E107: ='CA-Duration by age'!$M14/'CA-Duration by age'!$M18 -> 0.1260211923 | F107: ='CA-Duration by age'!$M15/'CA-Duration by age'!$M18 -> 0.2881986573 | G107: ='CA-Duration by age'!$M16/'CA-Duration by age'!$M18 -> 0.4553910863
A108: 65 & over | B108: ='CA-Duration by age'!$N11/'CA-Duration by age'!$N18 -> 0.009481668774 | C108: ='CA-Duration by age'!$N12/'CA-Duration by age'!$N18 -> 0.03666245259 | D108: ='CA-Duration by age'!$N13/'CA-Duration by age'!$N18 -> 0.0698482933 | E108: ='CA-Duration by age'!$N14/'CA-Duration by age'!$N18 -> 0.1261061947 | F108: ='CA-Duration by age'!$N15/'CA-Duration by age'!$N18 -> 0.2809734513 | G108: ='CA-Duration by age'!$N16/'CA-Duration by age'!$N18 -> 0.4743994943
A110: Table S7 Carer's Allowance claimants - Age band by Entitlement - at Aug 2020
A111: Ageband | B111: Entitlement only | C111: Claimant receiving benefit | D111: Entitlement only | E111: Claimant receiving benefit
A112: Total | B112: ='CA-Payment type by age'!L25 -> 38669 | C112: ='CA-Payment type by age'!V25 -> 83009 | D112: 1 | E112: 1
A113: Under 18 | B113: ='CA-Payment type by age'!L13 -> 38 | C113: ='CA-Payment type by age'!V13 -> 528 | D113: =B113/B$112 -> 0.0009826993199 | E113: =C113/C$112 -> 0.006360756063
A114: 18-24 | B114: ='CA-Payment type by age'!L14 -> 233 | C114: ='CA-Payment type by age'!V14 -> 3928 | D114: =B114/B$112 -> 0.006025498461 | E114: 0.0473201701
A115: 25-29 | B115: ='CA-Payment type by age'!L15 -> 247 | C115: ='CA-Payment type by age'!V15 -> 5225 | D115: 0.006387545579 | E115: 0.06294498187
A116: 30-34 | B116: ='CA-Payment type by age'!L16 -> 381 | C116: ='CA-Payment type by age'!V16 -> 8030 | D116: 0.009852853707 | E116: 0.09673649845
A117: 35-39 | B117: ='CA-Payment type by age'!L17 -> 492 | C117: ='CA-Payment type by age'!V17 -> 9268 | D117: 0.01272337014 | E117: =C117/C$112 -> 0.1116505439
A118: 40-44 | B118: ='CA-Payment type by age'!L18 -> 494 | C118: ='CA-Payment type by age'!V18 -> 8733 | D118: =B118/B$112 -> 0.01277509116 | E118: 0.1052054596
A119: 45-49 | B119: ='CA-Payment type by age'!L19 -> 613 | C119: ='CA-Payment type by age'!V19 -> 9489 | D119: 0.01585249166 | E119: 0.1143129058
A120: 50-54 | B120: ='CA-Payment type by age'!L20 -> 822 | C120: ='CA-Payment type by age'!V20 -> 10759 | D120: 0.02125733792 | E120: 0.1296124517
A121: 55-59 | B121: ='CA-Payment type by age'!L21 -> 1066 | C121: ='CA-Payment type by age'!V21 -> 11523 | D121: 0.02756730197 | E121: 0.1388162729
A122: 60-64 | B122: ='CA-Payment type by age'!L22 -> 1255 | C122: ='CA-Payment type by age'!V22 -> 12363 | D122: 0.03245493806 | E122: 0.1489356576
A123: 65 & over | B123: ='CA-Payment type by age'!L23 -> 33020 | C123: ='CA-Payment type by age'!V23 -> 3164 | D123: 0.8539139879 | E123: 0.03811634883
A126: These figures are subject to DWP's rounding techniques for disclosure control:
A127: https://www.gov.uk/government/publications/dwp-statistical-summary-policies-and-statements
A128: Totals may not sum due to rounding.
A129: "-" indicates a nil or negligible number
A131: Carer’s Allowance data is available in more detail on Stat-Xplore, where you can access data at lower geographies e.g. Local Authority, Census Output Area, Scottish and Westminster Parliamentary Constituencies:
A132: https://stat-xplore.dwp.gov.uk/webapi/jsf/login.xhtml
A133: Carer’s Allowance statistics are published as part of DWP’s benefits statistics collection:
A134: https://www.gov.uk/government/collections/dwp-statistical-summaries

Sheet Disablity Living Allowance
A1: Summary Panel: Disability Living Allowance claimants to August 2020
A48: Table S1 Disability Living Allowance claimants - to August 2020
A49: Payment Type | B49: ='DLA-In payment time series'!F9 -> Aug-19 | C49: ='DLA-In payment time series'!G9 -> Nov-19 | D49: ='DLA-In payment time series'!H9 -> Feb-20 | E49: ='DLA-In payment time series'!I9 -> May-20 | F49: ='DLA-In payment time series'!J9 -> Aug-20
A50: Entitlement only | B50: ='DLA-Entitlement time series'!G11-B51 -> 1813 | C50: ='DLA-Entitlement time series'!H11-C51 -> 1747 | D50: ='DLA-Entitlement time series'!I11-D51 -> 1656 | E50: ='DLA-Entitlement time series'!J11-E51 -> 1511 | F50: ='DLA-Entitlement time series'!K11-F51 -> 1469
A51: Claimant receiving benefit | B51: ='DLA-In payment time series'!F10 -> 172294 | C51: ='DLA-In payment time series'!G10 -> 164774 | D51: ='DLA-In payment time series'!H10 -> 156174 | E51: ='DLA-In payment time series'!I10 -> 148030 | F51: ='DLA-In payment time series'!J10 -> 146895
A52: Total | B52: =B50+B51 -> 174107 | C52: 166521 | D52: 157830 | E52: 149541 | F52: 148364
A54: Table S2 Disability Living Allowance claimants receiving benefit by gender - at August 2020
A55: Gender
A56: Total | B56: ='DLA-Gender'!C14 -> 146895 | C56: 1
A57: Female | B57: ='DLA-Gender'!C12 -> 69826 | C57: =B57/B56 -> 0.4753463358
A58: Male | B58: ='DLA-Gender'!C11 -> 77073 | C58: =B58/B56 -> 0.5246808945
A59: Unknown | B59: ='CA-Gender'!C13 -> 0 | C59: =B59/B56 -> 0
A61: Table S3 Disability Living Allowance claimants receiving benefit by Age band - at August 2020
A62: Age band
A63: Total | B63: ='DLA–Age Distribution'!C31 -> 146895 | C63: 1
A64: ='DLA–Age Distribution'!B11 -> Under 5 | B64: ='DLA–Age Distribution'!C11 -> 3961 | C64: =B64/$B$63 -> 0.02696483883
A65: ='DLA–Age Distribution'!B12 -> 5 to 10 | B65: ='DLA–Age Distribution'!C12 -> 18592 | C65: =B65/$B$63 -> 0.1265665952
A66: ='DLA–Age Distribution'!B13 -> 11 to 15 | B66: ='DLA–Age Distribution'!C13 -> 19258 | C66: 0.1311004459
A67: ='DLA–Age Distribution'!B14 -> 16 to 17 | B67: ='DLA–Age Distribution'!C14 -> 2705 | C67: 0.01841451377
A68: ='DLA–Age Distribution'!B15 -> 18 to 24 | B68: ='DLA–Age Distribution'!C15 -> 1227 | C68: 0.008352905136
A69: ='DLA–Age Distribution'!B16 -> 25 to 29 | B69: ='DLA–Age Distribution'!C16 -> 2540 | C69: 0.01729126247
A70: ='DLA–Age Distribution'!B17 -> 30 to 34 | B70: ='DLA–Age Distribution'!C17 -> 2540 | C70: 0.01729126247
A71: ='DLA–Age Distribution'!B18 -> 35 to 39 | B71: ='DLA–Age Distribution'!C18 -> 2366 | C71: 0.01610674291
A72: ='DLA–Age Distribution'!B19 -> 40 to 44 | B72: ='DLA–Age Distribution'!C19 -> 2611 | C72: 0.01777460091
A73: ='DLA–Age Distribution'!B20 -> 45 to 49 | B73: ='DLA–Age Distribution'!C20 -> 3627 | C73: 0.02469110589
A74: ='DLA–Age Distribution'!B21 -> 50 to 54 | B74: ='DLA–Age Distribution'!C21 -> 5436 | C74: 0.03700602471
A75: ='DLA–Age Distribution'!B22 -> 55 to 59 | B75: ='DLA–Age Distribution'!C22 -> 7054 | C75: 0.04802069505
A76: ='DLA–Age Distribution'!B23 -> 60 to 64 | B76: ='DLA–Age Distribution'!C23 -> 8158 | C76: 0.0555362674
A77: ='DLA–Age Distribution'!B24 -> 65 to 69 | B77: ='DLA–Age Distribution'!C24 -> 9002 | C77: 0.061281868
A78: ='DLA–Age Distribution'!B25 -> 70 to 74 | B78: ='DLA–Age Distribution'!C25 -> 18757 | C78: 0.1276898465
A79: ='DLA–Age Distribution'!B26 -> 75 to 79 | B79: ='DLA–Age Distribution'!C26 -> 20768 | C79: 0.1413798972
A80: ='DLA–Age Distribution'!B27 -> 80 to 84 | B80: ='DLA–Age Distribution'!C27 -> 12410 | C80: 0.08448211307
A81: ='DLA–Age Distribution'!B28 -> 85 to 89 | B81: ='DLA–Age Distribution'!C28 -> 4882 | C81: 0.03323462337
A82: 90+ | B82: ='DLA–Age Distribution'!C29 -> 1007 | C82: 0.006855236734
A83: ='DLA–Age Distribution'!B30 -> Unknown/Missing | B83: ='DLA–Age Distribution'!C30 -> ..
A85: Table S4 Disability Living Allowance receiving benefit by Duration of Claim - at August 2020
A86: Duration of Claim
A87: Total | B87: ='DLA-Time in Receipt'!C18 -> 146895 | C87: 1
A88: ='DLA-Time in Receipt'!B11 -> Up to 3 months | B88: ='DLA-Time in Receipt'!C11 -> 1037 | C88: =B88/B$87 -> 0.007059464243
A89: ='DLA-Time in Receipt'!B12 -> 3 months up to 6 months | B89: ='DLA-Time in Receipt'!C12 -> 995 | C89: 0.00677354573
A90: ='DLA-Time in Receipt'!B13 -> 6 months up to 1 year | B90: ='DLA-Time in Receipt'!C13 -> 3349 | C90: 0.02279859764
A91: ='DLA-Time in Receipt'!B14 -> 1 year and up to 2 years | B91: ='DLA-Time in Receipt'!C14 -> 6358 | C91: 0.04328261684
A92: ='DLA-Time in Receipt'!B15 -> 2 years and up to 5 years | B92: ='DLA-Time in Receipt'!C15 -> 14541 | C92: 0.09898907383
A93: ='DLA-Time in Receipt'!B16 -> 5 years and over | B93: ='DLA-Time in Receipt'!C16 -> 120623 | C93: 0.8211511624
A94: ='DLA-Time in Receipt'!B17 -> Unknown | B94: ='DLA-Time in Receipt'!C17 -> ..
A96: Table S5 Disability Living Allowance by Award Type - at August 2020
A97: Care Award | E97: Mobility Award
A98: Total | B98: ='DLA-Mobility and Care Element'!F12+'DLA-Mobility and Care Element'!F13+'DLA-Mobility and Care Element'!F14 -> 129113 | C98: =B98/$B$98 -> 1 | E98: Total | F98: =F99+F100 -> 123954 | G98: =F98/$F$98 -> 1
A99: ='DLA-Mobility and Care Element'!B12 -> Highest Rate | B99: ='DLA-Mobility and Care Element'!F12 -> 41564 | C99: =B99/$B$98 -> 0.3219195588 | E99: Higher Rate | F99: ='DLA-Mobility and Care Element'!C16 -> 72145 | G99: =F99/$F$98 -> 0.5820304306
A100: ='DLA-Mobility and Care Element'!B13 -> Middle Rate | B100: ='DLA-Mobility and Care Element'!F13 -> 59531 | C100: 0.4610767312 | E100: Lowest Rate | F100: ='DLA-Mobility and Care Element'!D16 -> 51809 | G100: 0.4179695694
A101: ='DLA-Mobility and Care Element'!B14 -> Lowest Rate | B101: ='DLA-Mobility and Care Element'!F14 -> 28018 | C101: 0.2170037099
A103: Table S6 Disability Living Allowance claimants by Qualifying Condition Type - at August 2020
A104: Qualifying Condition
A105: Total | B105: ='DLA-Qualifying Conditions'!C66 -> 146895 | C105: =B105/$B$105 -> 1
A106: Learning Difficulties | B106: 30137 | C106: =B106/$B$105 -> 0.2051601484
A107: Arthritis | B107: 26566 | C107: =B107/$B$105 -> 0.1808502672
A108: *Disease Of The Muscles, Bones or Joints | B108: 6747 | C108: 0.04593076687
A109: Behavioral Disorder | B109: 6186 | C109: 0.04211171245
A110: Psychosis | B110: 5908 | C110: 0.04021920419
A111: Neurological Diseases | B111: 5866 | C111: 0.03993328568
A112: Heart Disease | B112: 5814 | C112: 0.03957929133
A113: Unknown/Transfer from AA | B113: 5693 | C113: 0.03875557371
A114: Psychoneurosis | B114: 5375 | C114: 0.03659076211
A115: Back Pain - Other | B115: 5001 | C115: 0.03404472582
A116: **Other | B116: 44082 | C116: 0.3000919024
A118: AA = Attendance Allowance
A120: These figures are subject to DWP's rounding techniques for disclosure control:
A121: https://www.gov.uk/government/publications/dwp-statistical-summary-policies-and-statements
A122: Totals may not sum due to rounding.
A123: "-" indicates a nil or negligible number
A125: Disability Living Allowance data is available in more detail on Stat-Xplore, where you can access data at lower geographies e.g. Local Authority, Census Output Area, Scottish and Westminster Parliamentary Constituencies:
A126: https://stat-xplore.dwp.gov.uk/webapi/jsf/login.xhtml
A127: Disability Living Allowance statistics are published as part of DWP’s benefits statistics collection:
A128: https://www.gov.uk/government/collections/dwp-statistical-summaries

Sheet Attendance Allowance
A1: Summary Panel: Attendance Allowance claimants to August 2020
A49: Table S1 Attendance Allowance claimants - to August 2020
A50: Payment Type | B50: ='AA-Entitlement time series'!G9 -> Aug-19 | C50: ='AA-Entitlement time series'!H9 -> Nov-19 | D50: ='AA-Entitlement time series'!I9 -> Feb-20 | E50: ='AA-Entitlement time series'!J9 -> May-20 | F50: ='AA-Entitlement time series'!K9 -> Aug-20
A51: Entitlement only | B51: ='AA-Entitlement time series'!G10-B52 -> 20788 | C51: ='AA-Entitlement time series'!H10-C52 -> 20806 | D51: ='AA-Entitlement time series'!I10-D52 -> 19974 | E51: ='AA-Entitlement time series'!J10-E52 -> 15789 | F51: ='AA-Entitlement time series'!K10-F52 -> 16017
A52: Claimant receiving benefit | B52: ='AA-In payment time series'!G10 -> 126987 | C52: ='AA-In payment time series'!H10 -> 127307 | D52: ='AA-In payment time series'!I10 -> 127751 | E52: ='AA-In payment time series'!J10 -> 127303 | F52: ='AA-In payment time series'!K10 -> 126291
A53: Total | B53: =B51+B52 -> 147775 | C53: =C51+C52 -> 148113 | D53: 147725 | E53: 143092 | F53: 142308
A55: Table S2 Attendance Allowance claimants receiving benefit by gender - at August 2020
A56: Gender
A57: Total | B57: ='AA-Gender'!C14 -> 126291 | C57: 1
A58: Female | B58: ='AA-Gender'!C12 -> 79096 | C58: =B58/B57 -> 0.626299578
A59: Male | B59: ='AA-Gender'!C11 -> 47196 | C59: =B59/B57 -> 0.3737083403
A60: Unknown | B60: ='CA-Gender'!C13 -> 0 | C60: =B60/B57 -> 0
A62: Table S3 Attendance Allowance claimants receiving benefit by Age band - at August 2020
A63: Age band
A64: Total | B64: ='AA–Age Distribution'!C18 -> 126291 | C64: 1
A65: ='AA–Age Distribution'!B11 -> 65-69 | B65: ='AA–Age Distribution'!C11 -> 6045 | C65: ='AA–Age Distribution'!C11/$B$64 -> 0.04786564363
A66: ='AA–Age Distribution'!B12 -> 70-74 | B66: ='AA–Age Distribution'!C12 -> 19359 | C66: ='AA–Age Distribution'!C12/$B$64 -> 0.1532888329
A67: ='AA–Age Distribution'!B13 -> 75-79 | B67: ='AA–Age Distribution'!C13 -> 24836 | C67: ='AA–Age Distribution'!C13/$B$64 -> 0.1966569273
A68: ='AA–Age Distribution'!B14 -> 80-84 | B68: ='AA–Age Distribution'!C14 -> 31063 | C68: ='AA–Age Distribution'!C14/$B$64 -> 0.245963687
A69: ='AA–Age Distribution'!B15 -> 85-89 | B69: ='AA–Age Distribution'!C15 -> 26807 | C69: ='AA–Age Distribution'!C15/$B$64 -> 0.2122637401
A70: ='AA–Age Distribution'!B16 -> 90 and over | B70: ='AA–Age Distribution'!C16 -> 18182 | C70: ='AA–Age Distribution'!C16/$B$64 -> 0.1439690873
A71: ='AA–Age Distribution'!B17 -> Unknown | B71: ='AA–Age Distribution'!C17 -> .. | C71: ='AA–Age Distribution'!C17/$B$64 -> 
A73: Table S4 Attendance Allowance claimants receiving benefit by Duration of Claim - at August 2020
A74: Duration of Claim
A75: Total | B75: ='AA-Time in Receipt'!C18 -> 126291 | C75: 1
A76: ='AA-Time in Receipt'!B11 -> Up to 3 months | B76: ='AA-Time in Receipt'!C11 -> 3302 | C76: =B76/B$75 -> 0.02614596448
A77: ='AA-Time in Receipt'!B12 -> 3 months up to 6 months | B77: ='AA-Time in Receipt'!C12 -> 3043 | C77: 0.02409514534
A78: ='AA-Time in Receipt'!B13 -> 6 months up to 1 year | B78: ='AA-Time in Receipt'!C13 -> 10991 | C78: 0.08702916281
A79: ='AA-Time in Receipt'!B14 -> 1 year and up to 2 years | B79: ='AA-Time in Receipt'!C14 -> 18799 | C79: 0.1488546294
A80: ='AA-Time in Receipt'!B15 -> 2 years and up to 5 years | B80: ='AA-Time in Receipt'!C15 -> 38317 | C80: 0.3034024594
A81: ='AA-Time in Receipt'!B16 -> 5 years and over | B81: ='AA-Time in Receipt'!C16 -> 51831 | C81: 0.4104092928
A82: ='AA-Time in Receipt'!B17 -> Unknown | B82: ='AA-Time in Receipt'!C17 -> ..
A84: Table S5 Attendance Allowance claimants by Award Type - at August 2020
A85: Award Type
A86: Total | B86: ='AA-Mobility and Care Element'!C14 -> 126291 | C86: 1
A87: Lower Rate | B87: ='AA-Mobility and Care Element'!C11 -> 44215 | C87: =B87/B86 -> 0.3501041246
A88: Higher Rate | B88: ='AA-Mobility and Care Element'!C12 -> 82079 | C88: =B88/B86 -> 0.6499196301
A90: Table S6 Attendance Allowance claimants by Qualifying Condition Type - at August 2020
A91: Qualifying Condition
A92: Total | B92: ='AA-Qualifying Conditions'!C66 -> 126291 | C92: =B92/$B$92 -> 1
A93: Arthritis | B93: 36998 | C93: =B93/$B$92 -> 0.2929583264
A94: Unknown | B94: 11299 | C94: =B94/$B$92 -> 0.08946797476
A95: Dementia | B95: 9892 | C95: 0.07832703835
A96: Heart Disease | B96: 9016 | C96: 0.07139067709
A97: Chest Disease | B97: 8920 | C97: 0.07063052791
A98: *Disease Of The Muscles, Bones or Joints | B98: 6852 | C98: 0.05425564767
A99: Cerebrovascular Disease | B99: 6822 | C99: 0.05401810105
A100: Malignant Disease | B100: 4881 | C100: 0.03864883483
A101: Back Pain - Other | B101: 4611 | C101: 0.03651091527
A102: Blindness | B102: 4085 | C102: 0.03234593122
A103: **Other | B103: 22904 | C103: 0.181358925
A105: These figures are subject to DWP's rounding techniques for disclosure control:
A106: https://www.gov.uk/government/publications/dwp-statistical-summary-policies-and-statements
A107: Totals may not sum due to rounding.
A108: "-" indicates a nil or negligible number
A110: Attendance Allowance data is available in more detail on Stat-Xplore, where you can access data at lower geographies e.g. Local Authority, Census Output Area, Scottish and Westminster Parliamentary Constituencies:
A111: https://stat-xplore.dwp.gov.uk/webapi/jsf/login.xhtml
A112: Attendance Allowance statistics are published as part of DWP’s benefits statistics collection:
A113: https://www.gov.uk/government/collections/dwp-statistical-summaries

Sheet Severe Disablement Allowance
A1: Summary Panel: Severe Disablement Allowance claimants to August 2020
A22: Table S1 Severe Disablement Allowance claimants - to August 2020
A23: Payment Type | B23: Aug-14 | C23: Nov-14 | D23: Feb-15 | E23: May-15 | F23: Aug-15 | G23: Nov-15 | H23: Feb-16 | I23: May-16 | J23: Aug-16 | K23: Nov-16 | L23: Feb-17 | M23: May-17 | N23: Aug-17 | O23: Nov-17 | P23: Feb-18 | Q23: May-18 | R23: Aug-18 | S23: Nov-18 | T23: Feb-19 | U23: May-19 | V23: Aug-19 | W23: Nov-19 | X23: Feb-20 | Y23: May-20 | Z23: Aug-20
A24: Claimant receiving benefit | B24: 18012 | C24: 16577 | D24: 15098 | E24: 13466 | F24: 11876 | G24: 10627 | H24: 8157 | I24: 5941 | J24: 4835 | K24: 3989 | L24: 3270 | M24: 2854 | N24: 2681 | O24: 2524 | P24: 2266 | Q24: 2090 | R24: 2018 | S24: 1955 | T24: 1878 | U24: 1829 | V24: 1784 | W24: 1728 | X24: 1673 | Y24: 1613 | Z24: 1570
A26: Table S2 Severe Disablement Allowance by gender - at August 2020
A27: Gender
A28: Total | B28: ='SDA-Gender'!B11 -> 1570 | C28: 1
A29: Female | B29: ='SDA-Gender'!B10 -> 1285 | C29: =B29/B28 -> 0.8184713376
A30: Male | B30: ='SDA-Gender'!B9 -> 284 | C30: =B30/B28 -> 0.1808917197
A31: Unknown | B31: ='SDA-Gender'!B12 -> - | C31: =B31/B28 -> 
A33: Table S3 Severe Disablement Allowance claimants by Qualifying Condition Type - at August 2020
A34: Qualifying Condition
A35: Total | B35: 1613 | C35: =B35/$B$35 -> 1
A36: Mental and Behavioural disorders | B36: 614 | C36: =B36/$B$35 -> 0.3806571606
A37: Symptoms, signs and abnormal Clinical and Laboratory findings, not elsewhere classified | B37: 347 | C37: =B37/$B$35 -> 0.2151270924
A38: Disease of the Musculoskeletal System and Connective Tissue | B38: 219 | C38: 0.1357718537
A39: Diseases of the Nervous System | B39: 141 | C39: 0.08741475511
A40: Diseases of the Circulatory System | B40: 75 | C40: 0.04649721017
A41: **Other | B41: 170 | C41: =B41/B35 -> 0.1053936764
A44: These figures are subject to DWP's rounding techniques for disclosure control:
A45: https://www.gov.uk/government/publications/dwp-statistical-summary-policies-and-statements
A46: Totals may not sum due to rounding.
A47: "-" indicates a nil or negligible number
A49: Severe Disablement data is available in more detail on Stat-Xplore, where you can access data at lower geographies e.g. Local Authority, Census Output Area, Scottish and Westminster Parliamentary Constituencies:
A50: https://stat-xplore.dwp.gov.uk/webapi/jsf/login.xhtml
A51: Severe Disablement Allowance statistics are published as part of DWP’s benefits statistics collection:
A52: https://www.gov.uk/government/collections/dwp-statistical-summaries
